Workbook

Sheet So_gehts
B2: Ich stelle mich vor : Druck_6aus - Gewinnauswertung und Spielschein-Druck für Lotto und Auswahlwette
B4: Allgemeines
B5: Ich wurde von Auriga hergestellt, um ihm und anderen Glücksrittern die Arbeit zu erleichtern. Ich beherrsche zwar keine Tipp-Erstellung aber dafür gibts mich ja auch für lau.
B6: Meine Aufgaben sind:
B7: 1. Der Ausdruck von Normalscheinen für Lotto und die Toto-Auswahlwette für alle Bundesländer 2. Die Überwachung und Gewinnauswertung des laufenden Spieltages
B8: Bei mir sind nur die Zellen mit roter Schrift für Eingaben vorgesehen.
B9: Sollte man mich für LOTTO benutzen, so ist eine kleine Änderung nötig: Im Blatt Reihen ist der Wert in Zelle Q21 durch den Wert in Zelle Q24 zu ersetzen. Dadurch wird die Auswertung für die Ränge im Lotto aktiviert. Der 1. Rang kann hier natürlich nicht angezeigt werden, aber das ist dann wohl auch Wurscht. Dann ist sowieso die Ohnmacht nahe. :-))
B11: Das Blatt Einstellung
B12: Die Einstellungen sind in der Regel nur einmal festzulegen. Hier gebt ihr mir in Zelle B2 das Kürzel eures Bundeslandes mit. Daraus ermittle ich mir den groben Druckaufbau des Spielscheins, die Anzahl Spiele je Schein und die Anzahl Scheine über Alles.
B13: Auch der untere Bereich des Scheins mit den Zusatzlotterien muss nur einmal festgelegt werden. Mit Hilfe der Druckmaske darüber tragt ihr hier die Kreuze ein, wo ihr sie braucht. Jeder Eintrag hier wird in die Fusszeilen jedes Scheins gedruckt.
B14: Die Kreuze hier drucke ich etwas kleiner, weil deren Kästchen nicht immer genau unter einer der oberen Spalten stehen. So könnt ihr später, aber nur im gewählten Druckblatt das Kreuz über Zellenformatierung und Ausrichtung noch etwas in jede Richtung verschieben.
B15: Wollt ihr eine eigene Schein-Nummer ausdrucken, solltet ihr dafür eine "ungefährliche" Gegend im Fussbereich wählen. Da ich keine Zellen verbinden will, gebt ihr mir die einzelnen Stellen für die Schein-Nummer ein: h, z oder e für die Hunderter-, Zehner- und Einerstelle. Bei weniger als 100 Scheinen könnt ihr euch das "h" natürlich sparen.
B16: Noch ein Tipp zur Schein-Nr.: Ich habe auch die Farbe auf grau gesetzt. Diese Nummer sollte ja sowieso so wenig wie möglich auffallen um das Lesegerät nicht zu verwirren. Sollte das Lesegerät trotzdem meckern, müsst ihr euch eine andere Stelle dafür aussuchen, vielleicht auch die Druckgröße für diese Zellen verkleinern. Also zu Anfang nur ein oder zwei Scheine mit Nummer drucken bis alles durchgeht. Nehmt die letzten mit der größten Nummer.
B18: Mein Blatt - Reihen
B19: In meinen Spalten C bis H, ab Zeile 5 erwarte ich die Tippreihen. Aus diesen Reihen errechne ich die Anzahl der Spielscheine.
B20: Im Verlauf des Spieltages zeige ich die noch möglichen und die bereits erreichten Treffer an. Dazu brauche ich die Eingabe der Gewinnzahlen in den Zellen C1 bis I1. Da die Gewinnzahlen in der AW ja bis zum Schluss noch wechseln können, sind die Trefferangaben natürlich nur eine Orientierungshilfe solange noch nicht alle Spiele durch sind.
B21: In der Spalte P unter der Überschrift 'schon raus' kann man mir auch mitteilen, welche Zahlen bei der AW schon aus dem Rennen sind. Die werden dann bei der Trefferanzeige mit berücksichtigt.
B22: Den Teil ab Spalte Q nutze ich für Einsatz- und Gewinnberechnungen.
B24: Meine Blätter für den Druck - Die Versionen oben, links und rechts
B25: Eins vorweg: Bei Excel sind Zeilenhöhen und Spaltenbreiten nicht gleitend auf jeden Wert einstellbar, sondern nur in kleinen Sprüngen. Außerdem, und das habe ich erst jetzt festgestellt, werden diese Werte auf jedem Rechner anders dargestellt. Ich kann also nur den richtigen Aufbau der Scheine liefern. Somit wird jeder die Zeilenhöhen und Spaltenbreiten für sich selbst herausfinden müssen, und zwar durch Probedrucke. Und ist das passiert, bitte speichern und nur an diesem Rechner damit weiterarbeiten, also auch die Tipps nur dort einspielen.
B26: So, nun seid ihr dran. Das grobe Druckbild habe ich aus euren Einstellungen zusammengebastelt, das Papierformat auf A4 hochkant und alle Seitenränder auf 0 gesetzt. Der Druckbereich ist alles innerhalb des gelben Rahmens. Die Felder, die direkt an den Rahmen grenzen, sollten nicht bedruckt werden. Die sind zur Justierung gedacht.
B27: Grundsätzlich solltet ihr erst zur letzten Feineinstellung (Punkt 3) Totoscheine verwenden. Vorher würde ich alte DIN A4 Blätter nehmen, weil die ersten Druckversuche sicher in der "Wallachei" und nicht auf dem Totoschein landen. Nicht jeder Drucker mag es, wenn zu oft gedruckt wird wo kein Papier ist. Ich habe bei meinen Tests 2 Spielscheine jeweils einen quer und einen längs zerschnitten. Damit konnte ich auf dem A4-Blatt dann sehr gut die Abstände vermessen.
B28: Zum genauen Justieren empfehle ich jetzt folgende Vorgehensweise:
B29: 1. Die Entscheidung für die Ausrichtung der Scheine im Drucker. Ich kann, zum Beispiel in Hamburg, die Version rechts nicht benutzen, weil mein Drucker oben nicht randlos drucken kann und die letzte Zahl fast direkt an den Rand muss. Da wird wohl jeder seine Besonderheiten haben. Die weiteren Justierungen müssen nur in der gewählten Version gemacht werden. Die anderen braucht ihr dann nicht mehr.
B30: 2. Das Druckbild an den Spielschein anpassen. Die Fusszeilen dabei über Zeilenhöhe (Version oben) oder Spaltenbreite (Versionen links und rechts) soweit korrigieren dass die Kreuze für die Zusatzlotterien auf den richtigen Abstand zu den Tipps kommen.
B31: Ich empfehle erstmal die Höhen oder Breiten aller Spiele oder aller Tippreihen gemeinsam zu verändern, bis es passt Sollte das nicht gelingen, müsst ihr so dicht wie möglich rankommen und dann einzelne Zeilen oder Spalten mittendrin verändern.
B32: Die Größe des Druckes im Ganzen könnt ihr auch noch über die Skalierung im Menue Seitenlayout ändern. Also mit etwas Basteln sollte das hinzukriegen sein.
B33: 3. Zuletzt das fertige Druckbild an die richtige Stelle schieben. Das geht nur mit echten Spielscheinen, weil es verschiedene Papiereinzüge bei den Druckern gibt. Normalerweise sollten dafür Korrekturen in der Zeilenhöhe von Zeile 5 und in der Spaltenbreite von Spalte E ausreichen. Die habe ich jeweils orange gekennzeichnet. Mit Seitenrändern oben und links können die Korrekturen kleiner ausfallen.
B34: Und jetzt auf keinen Fall das Sichern vergessen. Nach erneutem Download sind die Justierungen wohl leider zu wiederholen.
B35: Und nun zum Druck selbst:
B36: Einzelscheine kann ich direkt drucken. Dazu brauche ich nur in Zelle B1 die Schein-Nr. Der Druck geht dann über den normalen Druckaufruf.
B37: Viel komfortabler geht es über den Makro "Druck" (sollte auch mit Strg d möglich sein) Damit kann ich alle oder eine Anzahl von Scheinen automatisch drucken. Dazu brauche ich in "von" und "bis" die Nummer des ersten und letzten zu druckenden Scheins. Ist der Wert "bis" kleiner als der Wert "von", wird nur der eine Schein aus "von" gedruckt, der Wert in "von" aber hochgezählt. So kann ich per Makro auch alle Scheine einzeln nacheinander drucken ohne irgendwas neu einzugeben.
B38: Nun wünsche ich euch nur noch einen Haufen Spielscheine und ein erfolgreiches Probieren. Viel Spaß
B39: Ich bitte sehr um Rückmeldungen, besonders bei Fehlern. Die werde ich so schnell es geht bereinigen. Aber auch, wenn etwas in dieser Anleitung besser erklärt werden sollte, meldet euch.

Sheet Einstellung
A1: Auswahl | AA1: einmalige Einstellungen und Druckmasken
A2: Bundesland | B2: hh | C2: =MATCH(B2,B16:B36,0) -> 6 | F2: =IF(INDEX(Masken,$B3*3-2,F12)="","",INDEX(Masken,$B3*3-2,F12)) ->  | I2: 1 | J2: 2 | K2: 3 | L2: 4 | M2: 5 | N2: 6 | O2: 7 | P2: 1 | Q2: 2 | R2: 3 | S2: 4 | T2: 5 | U2: 6 | V2: 7 | W2: 1 | X2: 2 | Y2: 3 | Z2: 4 | AA2: 5 | AB2: 6 | AC2: 7 | AD2: 1 | AE2: 2 | AF2: 3 | AG2: 4 | AH2: 5 | AI2: 6 | AJ2: 7 | AK2: 1 | AL2: 2 | AM2: 3 | AN2: 4 | AO2: 5 | AP2: 6 | AQ2: 7 | AR2: 1 | AS2: 2 | AT2: 3 | AU2: 4 | AV2: 5 | AW2: 6 | AX2: 7
A3: Maske | B3: =INDEX(C16:C31,C2) -> 1 | F3: =IF(INDEX(Masken,$B3*3-1,F12)="","",INDEX(Masken,$B3*3-1,F12)) -> 1 | G3: 8 | H3: 15 | I3: 22 | J3: 29 | K3: 36 | L3: 43 | M3: 1 | N3: 8 | O3: 15 | P3: 22 | Q3: 29 | R3: 36 | S3: 43
A4: Tipps je Schein | B4: =COUNTIF(E2:AZ2,1)*COUNTIF(E3:AZ3,1) -> 12
A5: Spalten je Feld | B5: =LARGE(F2:V2,1) -> 7 | E5: 1 | AZ5: 1
A6: Versatz 2. Block | B6: =MATCH(1,G3:Q3,0) -> 7 | E6: 2 | AZ6: 2
A7: erste 1 waagerecht | B7: =MATCH(1,F2:S2,0) -> 4 | E7: 3 | AP7: h | AQ7: z | AR7: e | AZ7: 3
E8: 4 | AZ8: 4
E9: 5 | X9: x | AC9: x | AZ9: 5
E10: 6 | AZ10: 6
E11: 7 | AZ11: 7
F12: 1 | G12: 2 | H12: 3 | I12: 4 | J12: 5 | K12: 6 | L12: 7 | M12: 8 | N12: 9 | O12: 10 | P12: 11 | Q12: 12 | R12: 13 | S12: 14 | T12: 15 | U12: 16 | V12: 17 | W12: 18 | X12: 19 | Y12: 20 | Z12: 21 | AA12: 22 | AB12: 23 | AC12: 24 | AD12: 25 | AE12: 26 | AF12: 27 | AG12: 28 | AH12: 29 | AI12: 30 | AJ12: 31 | AK12: 32 | AL12: 33 | AM12: 34 | AN12: 35 | AO12: 36 | AP12: 37 | AQ12: 38 | AR12: 39 | AS12: 40 | AT12: 41 | AU12: 42 | AV12: 43 | AW12: 44 | AX12: 45 | AY12: 46
A14: Bundesländer | B14: Kürzel | C14: Maske | AA14: Masken für den Tippbereich
F15: ="" ->  | G15: ="" ->  | H15: ="" ->  | I15: ="" ->  | J15: ="" ->  | K15: ="" ->  | L15: ="" ->  | M15: ="" ->  | N15: ="" ->  | O15: ="" ->  | P15: ="" ->  | Q15: ="" ->  | R15: ="" ->  | S15: ="" ->  | T15: ="" ->  | U15: ="" ->  | V15: ="" ->  | W15: ="" ->  | X15: ="" ->  | Y15: ="" ->  | Z15: ="" ->  | AA15: ="" ->  | AB15: ="" ->  | AC15: ="" ->  | AD15: ="" ->  | AE15: ="" ->  | AF15: ="" ->  | AG15: ="" ->  | AH15: ="" ->  | AI15: ="" ->  | AJ15: ="" ->  | AK15: ="" ->  | AL15: ="" ->  | AM15: ="" ->  | AN15: ="" ->  | AO15: ="" ->  | AP15: ="" ->  | AQ15: ="" ->  | AR15: ="" ->  | AS15: ="" ->  | AT15: ="" ->  | AU15: ="" ->  | AV15: ="" -> 
A16: Baden-Württemberg | B16: bw | D16: 1 | E16: ="" ->  | F16: ="" ->  | G16: ="" ->  | H16: 1 | I16: 2 | J16: 3 | K16: 4 | L16: 5 | M16: 6 | N16: 7 | O16: 1 | P16: 2 | Q16: 3 | R16: 4 | S16: 5 | T16: 6 | U16: 7 | V16: 1 | W16: 2 | X16: 3 | Y16: 4 | Z16: 5 | AA16: 6 | AB16: 7 | AC16: 1 | AD16: 2 | AE16: 3 | AF16: 4 | AG16: 5 | AH16: 6 | AI16: 7 | AJ16: 1 | AK16: 2 | AL16: 3 | AM16: 4 | AN16: 5 | AO16: 6 | AP16: 7 | AQ16: 1 | AR16: 2 | AS16: 3 | AT16: 4 | AU16: 5 | AV16: 6 | AW16: 7
A17: Bayern | B17: by | E17: 1 | F17: 8 | G17: 15 | H17: 22 | I17: 29 | J17: 36 | K17: 43 | L17: 1 | M17: 8 | N17: 15 | O17: 22 | P17: 29 | Q17: 36 | R17: 43
A18: Berlin | B18: be
A19: Brandenburg | B19: bb | C19: 3 | D19: 2 | E19: ="" ->  | F19: ="" ->  | G19: 1 | H19: 2 | I19: 3 | J19: 4 | K19: 5 | L19: 6 | M19: 7 | N19: 1 | O19: 2 | P19: 3 | Q19: 4 | R19: 5 | S19: 6 | T19: 7 | U19: 1 | V19: 2 | W19: 3 | X19: 4 | Y19: 5 | Z19: 6 | AA19: 7 | AB19: 1 | AC19: 2 | AD19: 3 | AE19: 4 | AF19: 5 | AG19: 6 | AH19: 7 | AI19: 1 | AJ19: 2 | AK19: 3 | AL19: 4 | AM19: 5 | AN19: 6 | AO19: 7 | AP19: 1 | AQ19: 2 | AR19: 3 | AS19: 4 | AT19: 5 | AU19: 6 | AV19: 7
A20: Bremen | B20: hb | E20: 1 | F20: 8 | G20: 15 | H20: 22 | I20: 29 | J20: 36 | K20: 43 | M20: 1 | N20: 8 | O20: 15 | P20: 22 | Q20: 29 | R20: 36 | S20: 43
A21: Hamburg | B21: hh | C21: 1
A22: Hessen | B22: he | D22: 3 | E22: ="" ->  | F22: ="" ->  | G22: 1 | H22: 2 | I22: 3 | J22: 4 | K22: 5 | L22: 6 | M22: 7 | N22: 1 | O22: 2 | P22: 3 | Q22: 4 | R22: 5 | S22: 6 | T22: 7 | U22: 1 | V22: 2 | W22: 3 | X22: 4 | Y22: 5 | Z22: 6 | AA22: 7 | AB22: 1 | AC22: 2 | AD22: 3 | AE22: 4 | AF22: 5 | AG22: 6 | AH22: 7 | AI22: 1 | AJ22: 2 | AK22: 3 | AL22: 4 | AM22: 5 | AN22: 6 | AO22: 7 | AP22: 1 | AQ22: 2 | AR22: 3 | AS22: 4 | AT22: 5 | AU22: 6 | AV22: 7
A23: Mecklenburg-Vorpommern | B23: mv | E23: 1 | F23: 8 | G23: 15 | H23: 22 | I23: 29 | J23: 36 | K23: 43 | L23: 1 | M23: 8 | N23: 15 | O23: 22 | P23: 29 | Q23: 36 | R23: 43
A24: Niedersachsen | B24: ni
A25: Nordrhein-Westfalen | B25: nw
A26: Rheinland Pfalz | B26: rp
A27: Saarland | B27: sl
A28: Sachsen | B28: sn | C28: 2
A29: Sachsen-Anhalt | B29: st
A30: Schleswig-Holstein | B30: sh
A31: Thüringen | B31: th
F35: ="" ->  | G35: ="" ->  | H35: ="" ->  | I35: ="" ->  | J35: ="" ->  | K35: ="" ->  | L35: ="" ->  | M35: ="" ->  | N35: ="" ->  | O35: ="" ->  | P35: ="" ->  | Q35: ="" ->  | R35: ="" ->  | S35: ="" ->  | T35: ="" ->  | U35: ="" ->  | V35: ="" ->  | W35: ="" ->  | X35: ="" ->  | Y35: ="" ->  | Z35: ="" ->  | AA35: ="" ->  | AB35: ="" ->  | AC35: ="" ->  | AD35: ="" ->  | AE35: ="" ->  | AF35: ="" ->  | AG35: ="" ->  | AH35: ="" ->  | AI35: ="" ->  | AJ35: ="" ->  | AK35: ="" ->  | AL35: ="" ->  | AM35: ="" ->  | AN35: ="" ->  | AO35: ="" ->  | AP35: ="" ->  | AQ35: ="" ->  | AR35: ="" ->  | AS35: ="" ->  | AT35: ="" ->  | AU35: ="" ->  | AV35: ="" -> 

Sheet Reihen
A1: Ergebnisse: | C1: 10 | D1: 12 | E1: 14 | F1: 17
E2: Gewinnzahlen | I2: Zus | Q2: Anzahl Scheine | R2: =INT((R9+R8-1)/R8) -> 4
J3: echte | L3: mögl. | M3: Ränge | O3: raus je | P3: schon | Q3: Preis je Tipp | R3: 0.65
A4: Reihe | C4: 1 | D4: 2 | E4: 3 | F4: 4 | G4: 5 | H4: 6 | J4: Treff | K4: Schein | L4: Treff | M4: mögl. | N4: erreicht | O4: Reihe | P4: raus | Q4: Scheingebühr | R4: 0.7
A5: =IF(C5="","",1) -> 1 | C5: 1 | D5: 3 | E5: 13 | F5: 24 | G5: 28 | H5: 29 | J5: =IF(C5="","",COUNTIF(C$1:H$1,C5)+COUNTIF(C$1:H$1,D5)+COUNTIF(C$1:H$1,E5)+COUNTIF(C$1:H$1,F5)+COUNTIF(C$1:H$1,G5)+COUNTIF(C$1:H$1,H5)) -> 0 | K5: =IF(A5="","",INT((A5+11)/R$8)) -> 1 | L5: =IF(C5="","",J5+MIN(6-J5-O5,6-R$10)) -> 2 | M5: =IF(C5="","",IF(L5<3,"",MID(Q$21,L5*2-5+COUNTIF(C5:H5,I$1)+(I$1=""),1))) ->  | N5: =IF(C5="","",IF(J5<3,"",MID(Q$21,J5*2-5+COUNTIF(C5:H5,I$1),1))) ->  | O5: =IF(C5="","",COUNTIF(P$5:P$52,C5)+COUNTIF(P$5:P$52,D5)+COUNTIF(P$5:P$52,E5)+COUNTIF(P$5:P$52,F5)+COUNTIF(P$5:P$52,G5)+COUNTIF(P$5:P$52,H5)) -> 0 | P5: 22 | Q5: Gesamteinsatz | R5: =R9*R3+R2*R4 -> 32.05
A6: =IF(C6="","",1+A5) -> 2 | C6: 2 | D6: 3 | E6: 14 | F6: 17 | G6: 25 | H6: 45 | J6: 2 | K6: 1 | L6: 4 | M6: 4 | O6: 1 | P6: 2 | Q6: ="- Gewinne" -> - Gewinne | R6: 0
A7: =IF(C7="","",1+A6) -> 3 | C7: 1 | D7: 3 | E7: 14 | F7: 15 | G7: 26 | H7: 47 | J7: 1 | K7: 1 | L7: 3 | M7: 5 | O7: 0 | Q7: zu zahlen | R7: =R5-R6 -> 32.05
A8: 4 | C8: 1 | D8: 3 | E8: 21 | F8: 22 | G8: 27 | H8: 29 | J8: 0 | K8: 1 | L8: 2 | O8: 1 | Q8: Reihen je Schein | R8: =Felder_je_Schein -> 12
A9: 5 | C9: 2 | D9: 4 | E9: 7 | F9: 8 | G9: 35 | H9: 44 | J9: 0 | K9: 1 | L9: 2 | O9: 1 | Q9: Reihen gesamt | R9: =COUNT(C5:C991) -> 45
A10: 6 | C10: 2 | D10: 4 | E10: 7 | F10: 19 | G10: 42 | H10: 43 | J10: 0 | K10: 1 | L10: 2 | O10: 1 | Q10: Ergebnisse bisher | R10: =COUNTA(C1:H1) -> 4
A11: 7 | C11: 2 | D11: 4 | E11: 13 | F11: 14 | G11: 24 | H11: 25 | J11: 1 | K11: 1 | L11: 3 | M11: 5 | O11: 1
A12: 8 | C12: 2 | D12: 4 | E12: 13 | F12: 17 | G12: 22 | H12: 29 | J12: 1 | K12: 1 | L12: 3 | M12: 5 | O12: 2 | Q12: Ränge | R12: möglich | S12: erreicht | T12: Quoten | U12: Gewinn
A13: 9 | C13: 2 | D13: 4 | E13: 13 | F13: 19 | G13: 26 | H13: 27 | J13: 0 | K13: 1 | L13: 2 | O13: 1 | Q13: 1 | R13: =COUNTIF(M$5:M$8075,Q13) -> 0 | S13: =COUNTIF(N$5:N$8075,Q13) -> 0 | T13: 8 | U13: =S13*T13 -> 0
A14: 10 | C14: 2 | D14: 4 | E14: 17 | F14: 19 | G14: 22 | H14: 27 | J14: 1 | K14: 1 | L14: 3 | M14: 5 | O14: 2 | Q14: =Q13+1 -> 2 | R14: 1 | S14: 0 | T14: 7 | U14: 0
A15: 11 | C15: 2 | D15: 7 | E15: 13 | F15: 17 | G15: 25 | H15: 26 | J15: 1 | K15: 1 | L15: 3 | M15: 5 | O15: 1 | Q15: 3 | R15: 0 | S15: 0 | T15: 6 | U15: 0
A16: 12 | C16: 2 | D16: 7 | E16: 14 | F16: 22 | G16: 24 | H16: 29 | J16: 1 | K16: 1 | L16: 3 | M16: 5 | O16: 2 | Q16: 4 | R16: 11 | S16: 0 | T16: 5 | U16: 0
A17: 13 | C17: 2 | D17: 7 | E17: 19 | F17: 24 | G17: 25 | H17: 29 | J17: 0 | K17: 2 | L17: 2 | O17: 1 | Q17: 5 | R17: 19 | S17: 0 | T17: 2.5 | U17: 0
A18: 14 | C18: 2 | D18: 7 | E18: 20 | F18: 25 | G18: 27 | H18: 29 | J18: 0 | K18: 2 | L18: 2 | O18: 1 | Q18: 6 | R18: 0 | S18: 2 | T18: 1.2 | U18: 2.4
A19: 15 | C19: 2 | D19: 10 | E19: 13 | F19: 19 | G19: 22 | H19: 24 | J19: 1 | K19: 2 | L19: 3 | M19: 5 | O19: 2 | Q19: 7 | R19: 0 | S19: 0 | T19: 0 | U19: 0
A20: 16 | C20: 2 | D20: 10 | E20: 14 | F20: 17 | G20: 22 | H20: 25 | J20: 3 | K20: 2 | L20: 4 | M20: 4 | N20: 6 | O20: 2 | Q20: 8 | R20: 0 | S20: 0 | T20: 0 | U20: 0
A21: 17 | C21: 2 | D21: 10 | E21: 14 | F21: 25 | G21: 27 | H21: 29 | J21: 2 | K21: 2 | L21: 4 | M21: 4 | O21: 1 | Q21: 65443211 | T21: Summe: | U21: =SUM(U13:U20) -> 2.4
A22: 18 | C22: 3 | D22: 4 | E22: 13 | F22: 19 | G22: 22 | H22: 24 | J22: 0 | K22: 2 | L22: 2 | O22: 1
A23: 19 | C23: 3 | D23: 4 | E23: 13 | F23: 24 | G23: 27 | H23: 29 | J23: 0 | K23: 2 | L23: 2 | O23: 0 | Q23: 65443211 | R23: Toto-AW
A24: 20 | C24: 3 | D24: 4 | E24: 14 | F24: 25 | G24: 27 | H24: 29 | J24: 1 | K24: 2 | L24: 3 | M24: 5 | O24: 0 | Q24: 87654322 | R24: Lotto
A25: 21 | C25: 3 | D25: 4 | E25: 17 | F25: 19 | G25: 26 | H25: 29 | J25: 1 | K25: 2 | L25: 3 | M25: 5 | O25: 0
A26: 22 | C26: 3 | D26: 4 | E26: 17 | F26: 22 | G26: 25 | H26: 27 | J26: 1 | K26: 2 | L26: 3 | M26: 5 | O26: 1
A27: 23 | C27: 3 | D27: 7 | E27: 13 | F27: 20 | G27: 22 | H27: 27 | J27: 0 | K27: 2 | L27: 2 | O27: 1
A28: 24 | C28: 3 | D28: 7 | E28: 14 | F28: 20 | G28: 25 | H28: 26 | J28: 1 | K28: 2 | L28: 3 | M28: 5 | O28: 0
A29: 25 | C29: 3 | D29: 7 | E29: 14 | F29: 25 | G29: 26 | H29: 29 | J29: 1 | K29: 3 | L29: 3 | M29: 5 | O29: 0
A30: 26 | C30: 3 | D30: 7 | E30: 19 | F30: 22 | G30: 24 | H30: 25 | J30: 0 | K30: 3 | L30: 2 | O30: 1
A31: 27 | C31: 3 | D31: 7 | E31: 20 | F31: 22 | G31: 25 | H31: 27 | J31: 0 | K31: 3 | L31: 2 | O31: 1
A32: 28 | C32: 3 | D32: 10 | E32: 13 | F32: 17 | G32: 22 | H32: 27 | J32: 2 | K32: 3 | L32: 4 | M32: 4 | O32: 1
A33: 29 | C33: 3 | D33: 10 | E33: 14 | F33: 17 | G33: 22 | H33: 24 | J33: 3 | K33: 3 | L33: 5 | M33: 2 | N33: 6 | O33: 1
A34: 30 | C34: 3 | D34: 10 | E34: 17 | F34: 22 | G34: 25 | H34: 29 | J34: 2 | K34: 3 | L34: 4 | M34: 4 | O34: 1
A35: 31 | C35: 4 | D35: 7 | E35: 10 | F35: 13 | G35: 22 | H35: 27 | J35: 1 | K35: 3 | L35: 3 | M35: 5 | O35: 1
A36: 32 | C36: 4 | D36: 7 | E36: 10 | F36: 17 | G36: 26 | H36: 29 | J36: 2 | K36: 3 | L36: 4 | M36: 4 | O36: 0
A37: 33 | C37: 4 | D37: 7 | E37: 13 | F37: 14 | G37: 27 | H37: 29 | J37: 1 | K37: 3 | L37: 3 | M37: 5 | O37: 0
A38: 34 | C38: 4 | D38: 7 | E38: 14 | F38: 19 | G38: 22 | H38: 26 | J38: 1 | K38: 3 | L38: 3 | M38: 5 | O38: 1
A39: 35 | C39: 4 | D39: 7 | E39: 14 | F39: 24 | G39: 25 | H39: 26 | J39: 1 | K39: 3 | L39: 3 | M39: 5 | O39: 0
A40: 36 | C40: 4 | D40: 7 | E40: 17 | F40: 20 | G40: 22 | H40: 25 | J40: 1 | K40: 3 | L40: 3 | M40: 5 | O40: 1
A41: 37 | C41: 4 | D41: 7 | E41: 19 | F41: 20 | G41: 25 | H41: 27 | J41: 0 | K41: 4 | L41: 2 | O41: 0
A42: 38 | C42: 4 | D42: 7 | E42: 20 | F42: 24 | G42: 26 | H42: 29 | J42: 0 | K42: 4 | L42: 2 | O42: 0
A43: 39 | C43: 4 | D43: 10 | E43: 13 | F43: 24 | G43: 26 | H43: 27 | J43: 1 | K43: 4 | L43: 3 | M43: 5 | O43: 0
A44: 40 | C44: 4 | D44: 10 | E44: 14 | F44: 19 | G44: 24 | H44: 29 | J44: 2 | K44: 4 | L44: 4 | M44: 4 | O44: 0
A45: 41 | C45: 4 | D45: 10 | E45: 14 | F45: 19 | G45: 25 | H45: 27 | J45: 2 | K45: 4 | L45: 4 | M45: 4 | O45: 0
A46: 42 | C46: 4 | D46: 10 | E46: 17 | F46: 19 | G46: 22 | H46: 24 | J46: 2 | K46: 4 | L46: 4 | M46: 4 | O46: 1
A47: 43 | C47: 4 | D47: 10 | E47: 17 | F47: 24 | G47: 25 | H47: 29 | J47: 2 | K47: 4 | L47: 4 | M47: 4 | O47: 0
A48: 44 | C48: 7 | D48: 10 | E48: 13 | F48: 14 | G48: 24 | H48: 26 | J48: 2 | K48: 4 | L48: 4 | M48: 4 | O48: 0
A49: 45 | C49: 7 | D49: 10 | E49: 13 | F49: 19 | G49: 26 | H49: 29 | J49: 1 | K49: 4 | L49: 3 | M49: 5 | O49: 0
C54: =IF(Q62="","",LARGE(Q62:BM62,6)) ->  | D54: =IF(C54="","",LARGE(Q62:BM62,5)) ->  | E54: =IF(C54="","",LARGE(Q62:BM62,4)) ->  | F54: =IF(C54="","",LARGE(Q62:BM62,3)) ->  | G54: =IF(C54="","",LARGE(Q62:BM62,2)) ->  | H54: =IF(C54="","",LARGE(Q62:BM62,1)) -> 
C55: =IF(Q63="","",LARGE(Q63:BM63,6)) -> 
C56: =IF(Q64="","",LARGE(Q64:BM64,6)) -> 
C57: =IF(Q65="","",LARGE(Q65:BM65,6)) -> 
C58: =IF(Q66="","",LARGE(Q66:BM66,6)) -> 
J69: =IF(C69="","",COUNTIF(C$1:H$1,C69)+COUNTIF(C$1:H$1,D69)+COUNTIF(C$1:H$1,E69)+COUNTIF(C$1:H$1,F69)+COUNTIF(C$1:H$1,G69)+COUNTIF(C$1:H$1,H69)) ->  | K69: =IF(A69="","",INT((A69+11)/R$8)) ->  | L69: =IF(C69="","",J69+MIN(6-J69-O69,6-R$10)) ->  | M69: =IF(C69="","",IF(L69<3,"",MID(Q$21,L69*2-5+COUNTIF(C69:H69,I$1)+(I$1=""),1))) ->  | N69: =IF(C69="","",IF(J69<3,"",MID(Q$21,J69*2-5+COUNTIF(C69:H69,I$1),1))) ->  | O69: =IF(C69="","",COUNTIF(P$5:P$52,C69)+COUNTIF(P$5:P$52,D69)+COUNTIF(P$5:P$52,E69)+COUNTIF(P$5:P$52,F69)+COUNTIF(P$5:P$52,G69)+COUNTIF(P$5:P$52,H69)) -> 
A71: =IF(C71="","",1+A70) -> 
D118: =IF(C118="","",LARGE(Q126:BM126,5)) ->  | E118: =IF(C118="","",LARGE(Q126:BM126,4)) ->  | F118: =IF(C118="","",LARGE(Q126:BM126,3)) ->  | G118: =IF(C118="","",LARGE(Q126:BM126,2)) ->  | H118: =IF(C118="","",LARGE(Q126:BM126,1)) -> 
C122: =IF(Q130="","",LARGE(Q130:BM130,6)) -> 
J133: =IF(C133="","",COUNTIF(C$1:H$1,C133)+COUNTIF(C$1:H$1,D133)+COUNTIF(C$1:H$1,E133)+COUNTIF(C$1:H$1,F133)+COUNTIF(C$1:H$1,G133)+COUNTIF(C$1:H$1,H133)) ->  | K133: =IF(A133="","",INT((A133+11)/R$8)) ->  | L133: =IF(C133="","",J133+MIN(6-J133-O133,6-R$10)) ->  | M133: =IF(C133="","",IF(L133<3,"",MID(Q$21,L133*2-5+COUNTIF(C133:H133,I$1)+(I$1=""),1))) ->  | N133: =IF(C133="","",IF(J133<3,"",MID(Q$21,J133*2-5+COUNTIF(C133:H133,I$1),1))) ->  | O133: =IF(C133="","",COUNTIF(P$5:P$52,C133)+COUNTIF(P$5:P$52,D133)+COUNTIF(P$5:P$52,E133)+COUNTIF(P$5:P$52,F133)+COUNTIF(P$5:P$52,G133)+COUNTIF(P$5:P$52,H133)) -> 
A135: =IF(C135="","",1+A134) -> 
C151: =IF(Q159="","",LARGE(Q159:BM159,6)) -> 
D182: =IF(C182="","",LARGE(Q190:BM190,5)) ->  | E182: =IF(C182="","",LARGE(Q190:BM190,4)) ->  | F182: =IF(C182="","",LARGE(Q190:BM190,3)) ->  | G182: =IF(C182="","",LARGE(Q190:BM190,2)) ->  | H182: =IF(C182="","",LARGE(Q190:BM190,1)) -> 
J197: =IF(C197="","",COUNTIF(C$1:H$1,C197)+COUNTIF(C$1:H$1,D197)+COUNTIF(C$1:H$1,E197)+COUNTIF(C$1:H$1,F197)+COUNTIF(C$1:H$1,G197)+COUNTIF(C$1:H$1,H197)) ->  | K197: =IF(A197="","",INT((A197+11)/R$8)) ->  | L197: =IF(C197="","",J197+MIN(6-J197-O197,6-R$10)) ->  | M197: =IF(C197="","",IF(L197<3,"",MID(Q$21,L197*2-5+COUNTIF(C197:H197,I$1)+(I$1=""),1))) ->  | N197: =IF(C197="","",IF(J197<3,"",MID(Q$21,J197*2-5+COUNTIF(C197:H197,I$1),1))) ->  | O197: =IF(C197="","",COUNTIF(P$5:P$52,C197)+COUNTIF(P$5:P$52,D197)+COUNTIF(P$5:P$52,E197)+COUNTIF(P$5:P$52,F197)+COUNTIF(P$5:P$52,G197)+COUNTIF(P$5:P$52,H197)) -> 
A199: =IF(C199="","",1+A198) -> 
C215: =IF(Q223="","",LARGE(Q223:BM223,6)) -> 
D246: =IF(C246="","",LARGE(Q254:BM254,5)) ->  | E246: =IF(C246="","",LARGE(Q254:BM254,4)) ->  | F246: =IF(C246="","",LARGE(Q254:BM254,3)) ->  | G246: =IF(C246="","",LARGE(Q254:BM254,2)) ->  | H246: =IF(C246="","",LARGE(Q254:BM254,1)) -> 
J261: =IF(C261="","",COUNTIF(C$1:H$1,C261)+COUNTIF(C$1:H$1,D261)+COUNTIF(C$1:H$1,E261)+COUNTIF(C$1:H$1,F261)+COUNTIF(C$1:H$1,G261)+COUNTIF(C$1:H$1,H261)) ->  | K261: =IF(A261="","",INT((A261+11)/R$8)) ->  | L261: =IF(C261="","",J261+MIN(6-J261-O261,6-R$10)) ->  | M261: =IF(C261="","",IF(L261<3,"",MID(Q$21,L261*2-5+COUNTIF(C261:H261,I$1)+(I$1=""),1))) ->  | N261: =IF(C261="","",IF(J261<3,"",MID(Q$21,J261*2-5+COUNTIF(C261:H261,I$1),1))) ->  | O261: =IF(C261="","",COUNTIF(P$5:P$52,C261)+COUNTIF(P$5:P$52,D261)+COUNTIF(P$5:P$52,E261)+COUNTIF(P$5:P$52,F261)+COUNTIF(P$5:P$52,G261)+COUNTIF(P$5:P$52,H261)) -> 
A263: =IF(C263="","",1+A262) -> 
C279: =IF(Q287="","",LARGE(Q287:BM287,6)) -> 
D310: =IF(C310="","",LARGE(Q318:BM318,5)) ->  | E310: =IF(C310="","",LARGE(Q318:BM318,4)) ->  | F310: =IF(C310="","",LARGE(Q318:BM318,3)) ->  | G310: =IF(C310="","",LARGE(Q318:BM318,2)) ->  | H310: =IF(C310="","",LARGE(Q318:BM318,1)) -> 
J325: =IF(C325="","",COUNTIF(C$1:H$1,C325)+COUNTIF(C$1:H$1,D325)+COUNTIF(C$1:H$1,E325)+COUNTIF(C$1:H$1,F325)+COUNTIF(C$1:H$1,G325)+COUNTIF(C$1:H$1,H325)) ->  | K325: =IF(A325="","",INT((A325+11)/R$8)) ->  | L325: =IF(C325="","",J325+MIN(6-J325-O325,6-R$10)) ->  | M325: =IF(C325="","",IF(L325<3,"",MID(Q$21,L325*2-5+COUNTIF(C325:H325,I$1)+(I$1=""),1))) ->  | N325: =IF(C325="","",IF(J325<3,"",MID(Q$21,J325*2-5+COUNTIF(C325:H325,I$1),1))) ->  | O325: =IF(C325="","",COUNTIF(P$5:P$52,C325)+COUNTIF(P$5:P$52,D325)+COUNTIF(P$5:P$52,E325)+COUNTIF(P$5:P$52,F325)+COUNTIF(P$5:P$52,G325)+COUNTIF(P$5:P$52,H325)) -> 
A327: =IF(C327="","",1+A326) -> 
C343: =IF(Q351="","",LARGE(Q351:BM351,6)) -> 
D374: =IF(C374="","",LARGE(Q382:BM382,5)) ->  | E374: =IF(C374="","",LARGE(Q382:BM382,4)) ->  | F374: =IF(C374="","",LARGE(Q382:BM382,3)) ->  | G374: =IF(C374="","",LARGE(Q382:BM382,2)) ->  | H374: =IF(C374="","",LARGE(Q382:BM382,1)) -> 
J389: =IF(C389="","",COUNTIF(C$1:H$1,C389)+COUNTIF(C$1:H$1,D389)+COUNTIF(C$1:H$1,E389)+COUNTIF(C$1:H$1,F389)+COUNTIF(C$1:H$1,G389)+COUNTIF(C$1:H$1,H389)) ->  | K389: =IF(A389="","",INT((A389+11)/R$8)) ->  | L389: =IF(C389="","",J389+MIN(6-J389-O389,6-R$10)) ->  | M389: =IF(C389="","",IF(L389<3,"",MID(Q$21,L389*2-5+COUNTIF(C389:H389,I$1)+(I$1=""),1))) ->  | N389: =IF(C389="","",IF(J389<3,"",MID(Q$21,J389*2-5+COUNTIF(C389:H389,I$1),1))) ->  | O389: =IF(C389="","",COUNTIF(P$5:P$52,C389)+COUNTIF(P$5:P$52,D389)+COUNTIF(P$5:P$52,E389)+COUNTIF(P$5:P$52,F389)+COUNTIF(P$5:P$52,G389)+COUNTIF(P$5:P$52,H389)) -> 
A391: =IF(C391="","",1+A390) -> 
C405: =IF(Q413="","",LARGE(Q413:BM413,6)) -> 
D438: =IF(C438="","",LARGE(Q446:BM446,5)) ->  | E438: =IF(C438="","",LARGE(Q446:BM446,4)) ->  | F438: =IF(C438="","",LARGE(Q446:BM446,3)) ->  | G438: =IF(C438="","",LARGE(Q446:BM446,2)) ->  | H438: =IF(C438="","",LARGE(Q446:BM446,1)) -> 
J453: =IF(C453="","",COUNTIF(C$1:H$1,C453)+COUNTIF(C$1:H$1,D453)+COUNTIF(C$1:H$1,E453)+COUNTIF(C$1:H$1,F453)+COUNTIF(C$1:H$1,G453)+COUNTIF(C$1:H$1,H453)) ->  | K453: =IF(A453="","",INT((A453+11)/R$8)) ->  | L453: =IF(C453="","",J453+MIN(6-J453-O453,6-R$10)) ->  | M453: =IF(C453="","",IF(L453<3,"",MID(Q$21,L453*2-5+COUNTIF(C453:H453,I$1)+(I$1=""),1))) ->  | N453: =IF(C453="","",IF(J453<3,"",MID(Q$21,J453*2-5+COUNTIF(C453:H453,I$1),1))) ->  | O453: =IF(C453="","",COUNTIF(P$5:P$52,C453)+COUNTIF(P$5:P$52,D453)+COUNTIF(P$5:P$52,E453)+COUNTIF(P$5:P$52,F453)+COUNTIF(P$5:P$52,G453)+COUNTIF(P$5:P$52,H453)) -> 
A455: =IF(C455="","",1+A454) -> 
C469: =IF(Q477="","",LARGE(Q477:BM477,6)) -> 
D502: =IF(C502="","",LARGE(Q510:BM510,5)) ->  | E502: =IF(C502="","",LARGE(Q510:BM510,4)) ->  | F502: =IF(C502="","",LARGE(Q510:BM510,3)) ->  | G502: =IF(C502="","",LARGE(Q510:BM510,2)) ->  | H502: =IF(C502="","",LARGE(Q510:BM510,1)) -> 
J517: =IF(C517="","",COUNTIF(C$1:H$1,C517)+COUNTIF(C$1:H$1,D517)+COUNTIF(C$1:H$1,E517)+COUNTIF(C$1:H$1,F517)+COUNTIF(C$1:H$1,G517)+COUNTIF(C$1:H$1,H517)) ->  | K517: =IF(A517="","",INT((A517+11)/R$8)) ->  | L517: =IF(C517="","",J517+MIN(6-J517-O517,6-R$10)) ->  | M517: =IF(C517="","",IF(L517<3,"",MID(Q$21,L517*2-5+COUNTIF(C517:H517,I$1)+(I$1=""),1))) ->  | N517: =IF(C517="","",IF(J517<3,"",MID(Q$21,J517*2-5+COUNTIF(C517:H517,I$1),1))) ->  | O517: =IF(C517="","",COUNTIF(P$5:P$52,C517)+COUNTIF(P$5:P$52,D517)+COUNTIF(P$5:P$52,E517)+COUNTIF(P$5:P$52,F517)+COUNTIF(P$5:P$52,G517)+COUNTIF(P$5:P$52,H517)) -> 
A519: =IF(C519="","",1+A518) -> 
C533: =IF(Q541="","",LARGE(Q541:BM541,6)) -> 
D566: =IF(C566="","",LARGE(Q574:BM574,5)) ->  | E566: =IF(C566="","",LARGE(Q574:BM574,4)) ->  | F566: =IF(C566="","",LARGE(Q574:BM574,3)) ->  | G566: =IF(C566="","",LARGE(Q574:BM574,2)) ->  | H566: =IF(C566="","",LARGE(Q574:BM574,1)) -> 
J581: =IF(C581="","",COUNTIF(C$1:H$1,C581)+COUNTIF(C$1:H$1,D581)+COUNTIF(C$1:H$1,E581)+COUNTIF(C$1:H$1,F581)+COUNTIF(C$1:H$1,G581)+COUNTIF(C$1:H$1,H581)) ->  | K581: =IF(A581="","",INT((A581+11)/R$8)) ->  | L581: =IF(C581="","",J581+MIN(6-J581-O581,6-R$10)) ->  | M581: =IF(C581="","",IF(L581<3,"",MID(Q$21,L581*2-5+COUNTIF(C581:H581,I$1)+(I$1=""),1))) ->  | N581: =IF(C581="","",IF(J581<3,"",MID(Q$21,J581*2-5+COUNTIF(C581:H581,I$1),1))) ->  | O581: =IF(C581="","",COUNTIF(P$5:P$52,C581)+COUNTIF(P$5:P$52,D581)+COUNTIF(P$5:P$52,E581)+COUNTIF(P$5:P$52,F581)+COUNTIF(P$5:P$52,G581)+COUNTIF(P$5:P$52,H581)) -> 
A583: =IF(C583="","",1+A582) -> 
C597: =IF(Q605="","",LARGE(Q605:BM605,6)) -> 
D630: =IF(C630="","",LARGE(Q638:BM638,5)) ->  | E630: =IF(C630="","",LARGE(Q638:BM638,4)) ->  | F630: =IF(C630="","",LARGE(Q638:BM638,3)) ->  | G630: =IF(C630="","",LARGE(Q638:BM638,2)) ->  | H630: =IF(C630="","",LARGE(Q638:BM638,1)) -> 
J645: =IF(C645="","",COUNTIF(C$1:H$1,C645)+COUNTIF(C$1:H$1,D645)+COUNTIF(C$1:H$1,E645)+COUNTIF(C$1:H$1,F645)+COUNTIF(C$1:H$1,G645)+COUNTIF(C$1:H$1,H645)) ->  | K645: =IF(A645="","",INT((A645+11)/R$8)) ->  | L645: =IF(C645="","",J645+MIN(6-J645-O645,6-R$10)) ->  | M645: =IF(C645="","",IF(L645<3,"",MID(Q$21,L645*2-5+COUNTIF(C645:H645,I$1)+(I$1=""),1))) ->  | N645: =IF(C645="","",IF(J645<3,"",MID(Q$21,J645*2-5+COUNTIF(C645:H645,I$1),1))) ->  | O645: =IF(C645="","",COUNTIF(P$5:P$52,C645)+COUNTIF(P$5:P$52,D645)+COUNTIF(P$5:P$52,E645)+COUNTIF(P$5:P$52,F645)+COUNTIF(P$5:P$52,G645)+COUNTIF(P$5:P$52,H645)) -> 
A647: =IF(C647="","",1+A646) -> 
C661: =IF(Q669="","",LARGE(Q669:BM669,6)) -> 
D694: =IF(C694="","",LARGE(Q702:BM702,5)) ->  | E694: =IF(C694="","",LARGE(Q702:BM702,4)) ->  | F694: =IF(C694="","",LARGE(Q702:BM702,3)) ->  | G694: =IF(C694="","",LARGE(Q702:BM702,2)) ->  | H694: =IF(C694="","",LARGE(Q702:BM702,1)) -> 
J709: =IF(C709="","",COUNTIF(C$1:H$1,C709)+COUNTIF(C$1:H$1,D709)+COUNTIF(C$1:H$1,E709)+COUNTIF(C$1:H$1,F709)+COUNTIF(C$1:H$1,G709)+COUNTIF(C$1:H$1,H709)) ->  | K709: =IF(A709="","",INT((A709+11)/R$8)) ->  | L709: =IF(C709="","",J709+MIN(6-J709-O709,6-R$10)) ->  | M709: =IF(C709="","",IF(L709<3,"",MID(Q$21,L709*2-5+COUNTIF(C709:H709,I$1)+(I$1=""),1))) ->  | N709: =IF(C709="","",IF(J709<3,"",MID(Q$21,J709*2-5+COUNTIF(C709:H709,I$1),1))) ->  | O709: =IF(C709="","",COUNTIF(P$5:P$52,C709)+COUNTIF(P$5:P$52,D709)+COUNTIF(P$5:P$52,E709)+COUNTIF(P$5:P$52,F709)+COUNTIF(P$5:P$52,G709)+COUNTIF(P$5:P$52,H709)) -> 
A711: =IF(C711="","",1+A710) -> 
C725: =IF(Q733="","",LARGE(Q733:BM733,6)) -> 
D758: =IF(C758="","",LARGE(Q766:BM766,5)) ->  | E758: =IF(C758="","",LARGE(Q766:BM766,4)) ->  | F758: =IF(C758="","",LARGE(Q766:BM766,3)) ->  | G758: =IF(C758="","",LARGE(Q766:BM766,2)) ->  | H758: =IF(C758="","",LARGE(Q766:BM766,1)) -> 
J773: =IF(C773="","",COUNTIF(C$1:H$1,C773)+COUNTIF(C$1:H$1,D773)+COUNTIF(C$1:H$1,E773)+COUNTIF(C$1:H$1,F773)+COUNTIF(C$1:H$1,G773)+COUNTIF(C$1:H$1,H773)) ->  | K773: =IF(A773="","",INT((A773+11)/R$8)) ->  | L773: =IF(C773="","",J773+MIN(6-J773-O773,6-R$10)) ->  | M773: =IF(C773="","",IF(L773<3,"",MID(Q$21,L773*2-5+COUNTIF(C773:H773,I$1)+(I$1=""),1))) ->  | N773: =IF(C773="","",IF(J773<3,"",MID(Q$21,J773*2-5+COUNTIF(C773:H773,I$1),1))) ->  | O773: =IF(C773="","",COUNTIF(P$5:P$52,C773)+COUNTIF(P$5:P$52,D773)+COUNTIF(P$5:P$52,E773)+COUNTIF(P$5:P$52,F773)+COUNTIF(P$5:P$52,G773)+COUNTIF(P$5:P$52,H773)) -> 
A775: =IF(C775="","",1+A774) -> 
C789: =IF(Q797="","",LARGE(Q797:BM797,6)) -> 
A803: =IF(C803="","",1+A802) ->  | C803: =IF(Q811="","",LARGE(Q811:BM811,6)) ->  | D803: =IF(C803="","",LARGE(Q811:BM811,5)) ->  | E803: =IF(C803="","",LARGE(Q811:BM811,4)) ->  | F803: =IF(C803="","",LARGE(Q811:BM811,3)) ->  | G803: =IF(C803="","",LARGE(Q811:BM811,2)) ->  | H803: =IF(C803="","",LARGE(Q811:BM811,1)) ->  | J803: =IF(C803="","",COUNTIF(C$1:H$1,C803)+COUNTIF(C$1:H$1,D803)+COUNTIF(C$1:H$1,E803)+COUNTIF(C$1:H$1,F803)+COUNTIF(C$1:H$1,G803)+COUNTIF(C$1:H$1,H803)) ->  | K803: =IF(A803="","",INT((A803+11)/R$8)) ->  | L803: =IF(C803="","",J803+MIN(6-J803-O803,6-R$10)) ->  | M803: =IF(C803="","",IF(L803<3,"",MID(Q$21,L803*2-5+COUNTIF(C803:H803,I$1)+(I$1=""),1))) ->  | N803: =IF(C803="","",IF(J803<3,"",MID(Q$21,J803*2-5+COUNTIF(C803:H803,I$1),1))) ->  | O803: =IF(C803="","",COUNTIF(P$5:P$52,C803)+COUNTIF(P$5:P$52,D803)+COUNTIF(P$5:P$52,E803)+COUNTIF(P$5:P$52,F803)+COUNTIF(P$5:P$52,G803)+COUNTIF(P$5:P$52,H803)) -> 
A867: =IF(C867="","",1+A866) ->  | C867: =IF(Q875="","",LARGE(Q875:BM875,6)) ->  | D867: =IF(C867="","",LARGE(Q875:BM875,5)) ->  | E867: =IF(C867="","",LARGE(Q875:BM875,4)) ->  | F867: =IF(C867="","",LARGE(Q875:BM875,3)) ->  | G867: =IF(C867="","",LARGE(Q875:BM875,2)) ->  | H867: =IF(C867="","",LARGE(Q875:BM875,1)) ->  | J867: =IF(C867="","",COUNTIF(C$1:H$1,C867)+COUNTIF(C$1:H$1,D867)+COUNTIF(C$1:H$1,E867)+COUNTIF(C$1:H$1,F867)+COUNTIF(C$1:H$1,G867)+COUNTIF(C$1:H$1,H867)) ->  | K867: =IF(A867="","",INT((A867+11)/R$8)) ->  | L867: =IF(C867="","",J867+MIN(6-J867-O867,6-R$10)) ->  | M867: =IF(C867="","",IF(L867<3,"",MID(Q$21,L867*2-5+COUNTIF(C867:H867,I$1)+(I$1=""),1))) ->  | N867: =IF(C867="","",IF(J867<3,"",MID(Q$21,J867*2-5+COUNTIF(C867:H867,I$1),1))) ->  | O867: =IF(C867="","",COUNTIF(P$5:P$52,C867)+COUNTIF(P$5:P$52,D867)+COUNTIF(P$5:P$52,E867)+COUNTIF(P$5:P$52,F867)+COUNTIF(P$5:P$52,G867)+COUNTIF(P$5:P$52,H867)) -> 
A931: =IF(C931="","",1+A930) ->  | C931: =IF(Q939="","",LARGE(Q939:BM939,6)) ->  | D931: =IF(C931="","",LARGE(Q939:BM939,5)) ->  | E931: =IF(C931="","",LARGE(Q939:BM939,4)) ->  | F931: =IF(C931="","",LARGE(Q939:BM939,3)) ->  | G931: =IF(C931="","",LARGE(Q939:BM939,2)) ->  | H931: =IF(C931="","",LARGE(Q939:BM939,1)) ->  | J931: =IF(C931="","",COUNTIF(C$1:H$1,C931)+COUNTIF(C$1:H$1,D931)+COUNTIF(C$1:H$1,E931)+COUNTIF(C$1:H$1,F931)+COUNTIF(C$1:H$1,G931)+COUNTIF(C$1:H$1,H931)) ->  | K931: =IF(A931="","",INT((A931+11)/R$8)) ->  | L931: =IF(C931="","",J931+MIN(6-J931-O931,6-R$10)) ->  | M931: =IF(C931="","",IF(L931<3,"",MID(Q$21,L931*2-5+COUNTIF(C931:H931,I$1)+(I$1=""),1))) ->  | N931: =IF(C931="","",IF(J931<3,"",MID(Q$21,J931*2-5+COUNTIF(C931:H931,I$1),1))) ->  | O931: =IF(C931="","",COUNTIF(P$5:P$52,C931)+COUNTIF(P$5:P$52,D931)+COUNTIF(P$5:P$52,E931)+COUNTIF(P$5:P$52,F931)+COUNTIF(P$5:P$52,G931)+COUNTIF(P$5:P$52,H931)) -> 
A995: =IF(C995="","",1+A994) ->  | C995: =IF(Q1003="","",LARGE(Q1003:BM1003,6)) ->  | D995: =IF(C995="","",LARGE(Q1003:BM1003,5)) ->  | E995: =IF(C995="","",LARGE(Q1003:BM1003,4)) ->  | F995: =IF(C995="","",LARGE(Q1003:BM1003,3)) ->  | G995: =IF(C995="","",LARGE(Q1003:BM1003,2)) ->  | H995: =IF(C995="","",LARGE(Q1003:BM1003,1)) ->  | J995: =IF(C995="","",COUNTIF(C$1:H$1,C995)+COUNTIF(C$1:H$1,D995)+COUNTIF(C$1:H$1,E995)+COUNTIF(C$1:H$1,F995)+COUNTIF(C$1:H$1,G995)+COUNTIF(C$1:H$1,H995)) ->  | K995: =IF(A995="","",INT((A995+11)/R$8)) ->  | L995: =IF(C995="","",J995+MIN(6-J995-O995,6-R$10)) ->  | M995: =IF(C995="","",IF(L995<3,"",MID(Q$21,L995*2-5+COUNTIF(C995:H995,I$1)+(I$1=""),1))) ->  | N995: =IF(C995="","",IF(J995<3,"",MID(Q$21,J995*2-5+COUNTIF(C995:H995,I$1),1))) ->  | O995: =IF(C995="","",COUNTIF(P$5:P$52,C995)+COUNTIF(P$5:P$52,D995)+COUNTIF(P$5:P$52,E995)+COUNTIF(P$5:P$52,F995)+COUNTIF(P$5:P$52,G995)+COUNTIF(P$5:P$52,H995)) -> 
A1059: =IF(C1059="","",1+A1058) ->  | C1059: =IF(Q1067="","",LARGE(Q1067:BM1067,6)) ->  | D1059: =IF(C1059="","",LARGE(Q1067:BM1067,5)) ->  | E1059: =IF(C1059="","",LARGE(Q1067:BM1067,4)) ->  | F1059: =IF(C1059="","",LARGE(Q1067:BM1067,3)) ->  | G1059: =IF(C1059="","",LARGE(Q1067:BM1067,2)) ->  | H1059: =IF(C1059="","",LARGE(Q1067:BM1067,1)) ->  | J1059: =IF(C1059="","",COUNTIF(C$1:H$1,C1059)+COUNTIF(C$1:H$1,D1059)+COUNTIF(C$1:H$1,E1059)+COUNTIF(C$1:H$1,F1059)+COUNTIF(C$1:H$1,G1059)+COUNTIF(C$1:H$1,H1059)) ->  | K1059: =IF(A1059="","",INT((A1059+11)/R$8)) ->  | L1059: =IF(C1059="","",J1059+MIN(6-J1059-O1059,6-R$10)) ->  | M1059: =IF(C1059="","",IF(L1059<3,"",MID(Q$21,L1059*2-5+COUNTIF(C1059:H1059,I$1)+(I$1=""),1))) ->  | N1059: =IF(C1059="","",IF(J1059<3,"",MID(Q$21,J1059*2-5+COUNTIF(C1059:H1059,I$1),1))) ->  | O1059: =IF(C1059="","",COUNTIF(P$5:P$52,C1059)+COUNTIF(P$5:P$52,D1059)+COUNTIF(P$5:P$52,E1059)+COUNTIF(P$5:P$52,F1059)+COUNTIF(P$5:P$52,G1059)+COUNTIF(P$5:P$52,H1059)) -> 
A1123: =IF(C1123="","",1+A1122) ->  | C1123: =IF(Q1131="","",LARGE(Q1131:BM1131,6)) ->  | D1123: =IF(C1123="","",LARGE(Q1131:BM1131,5)) ->  | E1123: =IF(C1123="","",LARGE(Q1131:BM1131,4)) ->  | F1123: =IF(C1123="","",LARGE(Q1131:BM1131,3)) ->  | G1123: =IF(C1123="","",LARGE(Q1131:BM1131,2)) ->  | H1123: =IF(C1123="","",LARGE(Q1131:BM1131,1)) ->  | J1123: =IF(C1123="","",COUNTIF(C$1:H$1,C1123)+COUNTIF(C$1:H$1,D1123)+COUNTIF(C$1:H$1,E1123)+COUNTIF(C$1:H$1,F1123)+COUNTIF(C$1:H$1,G1123)+COUNTIF(C$1:H$1,H1123)) ->  | K1123: =IF(A1123="","",INT((A1123+11)/R$8)) ->  | L1123: =IF(C1123="","",J1123+MIN(6-J1123-O1123,6-R$10)) ->  | M1123: =IF(C1123="","",IF(L1123<3,"",MID(Q$21,L1123*2-5+COUNTIF(C1123:H1123,I$1)+(I$1=""),1))) ->  | N1123: =IF(C1123="","",IF(J1123<3,"",MID(Q$21,J1123*2-5+COUNTIF(C1123:H1123,I$1),1))) ->  | O1123: =IF(C1123="","",COUNTIF(P$5:P$52,C1123)+COUNTIF(P$5:P$52,D1123)+COUNTIF(P$5:P$52,E1123)+COUNTIF(P$5:P$52,F1123)+COUNTIF(P$5:P$52,G1123)+COUNTIF(P$5:P$52,H1123)) -> 
A1187: =IF(C1187="","",1+A1186) ->  | C1187: =IF(Q1195="","",LARGE(Q1195:BM1195,6)) ->  | D1187: =IF(C1187="","",LARGE(Q1195:BM1195,5)) ->  | E1187: =IF(C1187="","",LARGE(Q1195:BM1195,4)) ->  | F1187: =IF(C1187="","",LARGE(Q1195:BM1195,3)) ->  | G1187: =IF(C1187="","",LARGE(Q1195:BM1195,2)) ->  | H1187: =IF(C1187="","",LARGE(Q1195:BM1195,1)) ->  | J1187: =IF(C1187="","",COUNTIF(C$1:H$1,C1187)+COUNTIF(C$1:H$1,D1187)+COUNTIF(C$1:H$1,E1187)+COUNTIF(C$1:H$1,F1187)+COUNTIF(C$1:H$1,G1187)+COUNTIF(C$1:H$1,H1187)) ->  | K1187: =IF(A1187="","",INT((A1187+11)/R$8)) ->  | L1187: =IF(C1187="","",J1187+MIN(6-J1187-O1187,6-R$10)) ->  | M1187: =IF(C1187="","",IF(L1187<3,"",MID(Q$21,L1187*2-5+COUNTIF(C1187:H1187,I$1)+(I$1=""),1))) ->  | N1187: =IF(C1187="","",IF(J1187<3,"",MID(Q$21,J1187*2-5+COUNTIF(C1187:H1187,I$1),1))) ->  | O1187: =IF(C1187="","",COUNTIF(P$5:P$52,C1187)+COUNTIF(P$5:P$52,D1187)+COUNTIF(P$5:P$52,E1187)+COUNTIF(P$5:P$52,F1187)+COUNTIF(P$5:P$52,G1187)+COUNTIF(P$5:P$52,H1187)) -> 
A1251: =IF(C1251="","",1+A1250) ->  | C1251: =IF(Q1259="","",LARGE(Q1259:BM1259,6)) ->  | D1251: =IF(C1251="","",LARGE(Q1259:BM1259,5)) ->  | E1251: =IF(C1251="","",LARGE(Q1259:BM1259,4)) ->  | F1251: =IF(C1251="","",LARGE(Q1259:BM1259,3)) ->  | G1251: =IF(C1251="","",LARGE(Q1259:BM1259,2)) ->  | H1251: =IF(C1251="","",LARGE(Q1259:BM1259,1)) ->  | J1251: =IF(C1251="","",COUNTIF(C$1:H$1,C1251)+COUNTIF(C$1:H$1,D1251)+COUNTIF(C$1:H$1,E1251)+COUNTIF(C$1:H$1,F1251)+COUNTIF(C$1:H$1,G1251)+COUNTIF(C$1:H$1,H1251)) ->  | K1251: =IF(A1251="","",INT((A1251+11)/R$8)) ->  | L1251: =IF(C1251="","",J1251+MIN(6-J1251-O1251,6-R$10)) ->  | M1251: =IF(C1251="","",IF(L1251<3,"",MID(Q$21,L1251*2-5+COUNTIF(C1251:H1251,I$1)+(I$1=""),1))) ->  | N1251: =IF(C1251="","",IF(J1251<3,"",MID(Q$21,J1251*2-5+COUNTIF(C1251:H1251,I$1),1))) ->  | O1251: =IF(C1251="","",COUNTIF(P$5:P$52,C1251)+COUNTIF(P$5:P$52,D1251)+COUNTIF(P$5:P$52,E1251)+COUNTIF(P$5:P$52,F1251)+COUNTIF(P$5:P$52,G1251)+COUNTIF(P$5:P$52,H1251)) -> 
A1315: =IF(C1315="","",1+A1314) ->  | C1315: =IF(Q1323="","",LARGE(Q1323:BM1323,6)) ->  | D1315: =IF(C1315="","",LARGE(Q1323:BM1323,5)) ->  | E1315: =IF(C1315="","",LARGE(Q1323:BM1323,4)) ->  | F1315: =IF(C1315="","",LARGE(Q1323:BM1323,3)) ->  | G1315: =IF(C1315="","",LARGE(Q1323:BM1323,2)) ->  | H1315: =IF(C1315="","",LARGE(Q1323:BM1323,1)) ->  | J1315: =IF(C1315="","",COUNTIF(C$1:H$1,C1315)+COUNTIF(C$1:H$1,D1315)+COUNTIF(C$1:H$1,E1315)+COUNTIF(C$1:H$1,F1315)+COUNTIF(C$1:H$1,G1315)+COUNTIF(C$1:H$1,H1315)) ->  | K1315: =IF(A1315="","",INT((A1315+11)/R$8)) ->  | L1315: =IF(C1315="","",J1315+MIN(6-J1315-O1315,6-R$10)) ->  | M1315: =IF(C1315="","",IF(L1315<3,"",MID(Q$21,L1315*2-5+COUNTIF(C1315:H1315,I$1)+(I$1=""),1))) ->  | N1315: =IF(C1315="","",IF(J1315<3,"",MID(Q$21,J1315*2-5+COUNTIF(C1315:H1315,I$1),1))) ->  | O1315: =IF(C1315="","",COUNTIF(P$5:P$52,C1315)+COUNTIF(P$5:P$52,D1315)+COUNTIF(P$5:P$52,E1315)+COUNTIF(P$5:P$52,F1315)+COUNTIF(P$5:P$52,G1315)+COUNTIF(P$5:P$52,H1315)) -> 
A1379: =IF(C1379="","",1+A1378) ->  | C1379: =IF(Q1387="","",LARGE(Q1387:BM1387,6)) ->  | D1379: =IF(C1379="","",LARGE(Q1387:BM1387,5)) ->  | E1379: =IF(C1379="","",LARGE(Q1387:BM1387,4)) ->  | F1379: =IF(C1379="","",LARGE(Q1387:BM1387,3)) ->  | G1379: =IF(C1379="","",LARGE(Q1387:BM1387,2)) ->  | H1379: =IF(C1379="","",LARGE(Q1387:BM1387,1)) ->  | J1379: =IF(C1379="","",COUNTIF(C$1:H$1,C1379)+COUNTIF(C$1:H$1,D1379)+COUNTIF(C$1:H$1,E1379)+COUNTIF(C$1:H$1,F1379)+COUNTIF(C$1:H$1,G1379)+COUNTIF(C$1:H$1,H1379)) ->  | K1379: =IF(A1379="","",INT((A1379+11)/R$8)) ->  | L1379: =IF(C1379="","",J1379+MIN(6-J1379-O1379,6-R$10)) ->  | M1379: =IF(C1379="","",IF(L1379<3,"",MID(Q$21,L1379*2-5+COUNTIF(C1379:H1379,I$1)+(I$1=""),1))) ->  | N1379: =IF(C1379="","",IF(J1379<3,"",MID(Q$21,J1379*2-5+COUNTIF(C1379:H1379,I$1),1))) ->  | O1379: =IF(C1379="","",COUNTIF(P$5:P$52,C1379)+COUNTIF(P$5:P$52,D1379)+COUNTIF(P$5:P$52,E1379)+COUNTIF(P$5:P$52,F1379)+COUNTIF(P$5:P$52,G1379)+COUNTIF(P$5:P$52,H1379)) -> 
A1443: =IF(C1443="","",1+A1442) ->  | C1443: =IF(Q1451="","",LARGE(Q1451:BM1451,6)) ->  | D1443: =IF(C1443="","",LARGE(Q1451:BM1451,5)) ->  | E1443: =IF(C1443="","",LARGE(Q1451:BM1451,4)) ->  | F1443: =IF(C1443="","",LARGE(Q1451:BM1451,3)) ->  | G1443: =IF(C1443="","",LARGE(Q1451:BM1451,2)) ->  | H1443: =IF(C1443="","",LARGE(Q1451:BM1451,1)) ->  | J1443: =IF(C1443="","",COUNTIF(C$1:H$1,C1443)+COUNTIF(C$1:H$1,D1443)+COUNTIF(C$1:H$1,E1443)+COUNTIF(C$1:H$1,F1443)+COUNTIF(C$1:H$1,G1443)+COUNTIF(C$1:H$1,H1443)) ->  | K1443: =IF(A1443="","",INT((A1443+11)/R$8)) ->  | L1443: =IF(C1443="","",J1443+MIN(6-J1443-O1443,6-R$10)) ->  | M1443: =IF(C1443="","",IF(L1443<3,"",MID(Q$21,L1443*2-5+COUNTIF(C1443:H1443,I$1)+(I$1=""),1))) ->  | N1443: =IF(C1443="","",IF(J1443<3,"",MID(Q$21,J1443*2-5+COUNTIF(C1443:H1443,I$1),1))) ->  | O1443: =IF(C1443="","",COUNTIF(P$5:P$52,C1443)+COUNTIF(P$5:P$52,D1443)+COUNTIF(P$5:P$52,E1443)+COUNTIF(P$5:P$52,F1443)+COUNTIF(P$5:P$52,G1443)+COUNTIF(P$5:P$52,H1443)) -> 
A1507: =IF(C1507="","",1+A1506) ->  | C1507: =IF(Q1515="","",LARGE(Q1515:BM1515,6)) ->  | D1507: =IF(C1507="","",LARGE(Q1515:BM1515,5)) ->  | E1507: =IF(C1507="","",LARGE(Q1515:BM1515,4)) ->  | F1507: =IF(C1507="","",LARGE(Q1515:BM1515,3)) ->  | G1507: =IF(C1507="","",LARGE(Q1515:BM1515,2)) ->  | H1507: =IF(C1507="","",LARGE(Q1515:BM1515,1)) ->  | J1507: =IF(C1507="","",COUNTIF(C$1:H$1,C1507)+COUNTIF(C$1:H$1,D1507)+COUNTIF(C$1:H$1,E1507)+COUNTIF(C$1:H$1,F1507)+COUNTIF(C$1:H$1,G1507)+COUNTIF(C$1:H$1,H1507)) ->  | K1507: =IF(A1507="","",INT((A1507+11)/R$8)) ->  | L1507: =IF(C1507="","",J1507+MIN(6-J1507-O1507,6-R$10)) ->  | M1507: =IF(C1507="","",IF(L1507<3,"",MID(Q$21,L1507*2-5+COUNTIF(C1507:H1507,I$1)+(I$1=""),1))) ->  | N1507: =IF(C1507="","",IF(J1507<3,"",MID(Q$21,J1507*2-5+COUNTIF(C1507:H1507,I$1),1))) ->  | O1507: =IF(C1507="","",COUNTIF(P$5:P$52,C1507)+COUNTIF(P$5:P$52,D1507)+COUNTIF(P$5:P$52,E1507)+COUNTIF(P$5:P$52,F1507)+COUNTIF(P$5:P$52,G1507)+COUNTIF(P$5:P$52,H1507)) -> 
A1571: =IF(C1571="","",1+A1570) ->  | C1571: =IF(Q1579="","",LARGE(Q1579:BM1579,6)) ->  | D1571: =IF(C1571="","",LARGE(Q1579:BM1579,5)) ->  | E1571: =IF(C1571="","",LARGE(Q1579:BM1579,4)) ->  | F1571: =IF(C1571="","",LARGE(Q1579:BM1579,3)) ->  | G1571: =IF(C1571="","",LARGE(Q1579:BM1579,2)) ->  | H1571: =IF(C1571="","",LARGE(Q1579:BM1579,1)) ->  | J1571: =IF(C1571="","",COUNTIF(C$1:H$1,C1571)+COUNTIF(C$1:H$1,D1571)+COUNTIF(C$1:H$1,E1571)+COUNTIF(C$1:H$1,F1571)+COUNTIF(C$1:H$1,G1571)+COUNTIF(C$1:H$1,H1571)) ->  | K1571: =IF(A1571="","",INT((A1571+11)/R$8)) ->  | L1571: =IF(C1571="","",J1571+MIN(6-J1571-O1571,6-R$10)) ->  | M1571: =IF(C1571="","",IF(L1571<3,"",MID(Q$21,L1571*2-5+COUNTIF(C1571:H1571,I$1)+(I$1=""),1))) ->  | N1571: =IF(C1571="","",IF(J1571<3,"",MID(Q$21,J1571*2-5+COUNTIF(C1571:H1571,I$1),1))) ->  | O1571: =IF(C1571="","",COUNTIF(P$5:P$52,C1571)+COUNTIF(P$5:P$52,D1571)+COUNTIF(P$5:P$52,E1571)+COUNTIF(P$5:P$52,F1571)+COUNTIF(P$5:P$52,G1571)+COUNTIF(P$5:P$52,H1571)) -> 
A1635: =IF(C1635="","",1+A1634) ->  | C1635: =IF(Q1643="","",LARGE(Q1643:BM1643,6)) ->  | D1635: =IF(C1635="","",LARGE(Q1643:BM1643,5)) ->  | E1635: =IF(C1635="","",LARGE(Q1643:BM1643,4)) ->  | F1635: =IF(C1635="","",LARGE(Q1643:BM1643,3)) ->  | G1635: =IF(C1635="","",LARGE(Q1643:BM1643,2)) ->  | H1635: =IF(C1635="","",LARGE(Q1643:BM1643,1)) ->  | J1635: =IF(C1635="","",COUNTIF(C$1:H$1,C1635)+COUNTIF(C$1:H$1,D1635)+COUNTIF(C$1:H$1,E1635)+COUNTIF(C$1:H$1,F1635)+COUNTIF(C$1:H$1,G1635)+COUNTIF(C$1:H$1,H1635)) ->  | K1635: =IF(A1635="","",INT((A1635+11)/R$8)) ->  | L1635: =IF(C1635="","",J1635+MIN(6-J1635-O1635,6-R$10)) ->  | M1635: =IF(C1635="","",IF(L1635<3,"",MID(Q$21,L1635*2-5+COUNTIF(C1635:H1635,I$1)+(I$1=""),1))) ->  | N1635: =IF(C1635="","",IF(J1635<3,"",MID(Q$21,J1635*2-5+COUNTIF(C1635:H1635,I$1),1))) ->  | O1635: =IF(C1635="","",COUNTIF(P$5:P$52,C1635)+COUNTIF(P$5:P$52,D1635)+COUNTIF(P$5:P$52,E1635)+COUNTIF(P$5:P$52,F1635)+COUNTIF(P$5:P$52,G1635)+COUNTIF(P$5:P$52,H1635)) -> 
A1699: =IF(C1699="","",1+A1698) ->  | C1699: =IF(Q1707="","",LARGE(Q1707:BM1707,6)) ->  | D1699: =IF(C1699="","",LARGE(Q1707:BM1707,5)) ->  | E1699: =IF(C1699="","",LARGE(Q1707:BM1707,4)) ->  | F1699: =IF(C1699="","",LARGE(Q1707:BM1707,3)) ->  | G1699: =IF(C1699="","",LARGE(Q1707:BM1707,2)) ->  | H1699: =IF(C1699="","",LARGE(Q1707:BM1707,1)) ->  | J1699: =IF(C1699="","",COUNTIF(C$1:H$1,C1699)+COUNTIF(C$1:H$1,D1699)+COUNTIF(C$1:H$1,E1699)+COUNTIF(C$1:H$1,F1699)+COUNTIF(C$1:H$1,G1699)+COUNTIF(C$1:H$1,H1699)) ->  | K1699: =IF(A1699="","",INT((A1699+11)/R$8)) ->  | L1699: =IF(C1699="","",J1699+MIN(6-J1699-O1699,6-R$10)) ->  | M1699: =IF(C1699="","",IF(L1699<3,"",MID(Q$21,L1699*2-5+COUNTIF(C1699:H1699,I$1)+(I$1=""),1))) ->  | N1699: =IF(C1699="","",IF(J1699<3,"",MID(Q$21,J1699*2-5+COUNTIF(C1699:H1699,I$1),1))) ->  | O1699: =IF(C1699="","",COUNTIF(P$5:P$52,C1699)+COUNTIF(P$5:P$52,D1699)+COUNTIF(P$5:P$52,E1699)+COUNTIF(P$5:P$52,F1699)+COUNTIF(P$5:P$52,G1699)+COUNTIF(P$5:P$52,H1699)) -> 
A1763: =IF(C1763="","",1+A1762) ->  | C1763: =IF(Q1771="","",LARGE(Q1771:BM1771,6)) ->  | D1763: =IF(C1763="","",LARGE(Q1771:BM1771,5)) ->  | E1763: =IF(C1763="","",LARGE(Q1771:BM1771,4)) ->  | F1763: =IF(C1763="","",LARGE(Q1771:BM1771,3)) ->  | G1763: =IF(C1763="","",LARGE(Q1771:BM1771,2)) ->  | H1763: =IF(C1763="","",LARGE(Q1771:BM1771,1)) ->  | J1763: =IF(C1763="","",COUNTIF(C$1:H$1,C1763)+COUNTIF(C$1:H$1,D1763)+COUNTIF(C$1:H$1,E1763)+COUNTIF(C$1:H$1,F1763)+COUNTIF(C$1:H$1,G1763)+COUNTIF(C$1:H$1,H1763)) ->  | K1763: =IF(A1763="","",INT((A1763+11)/R$8)) ->  | L1763: =IF(C1763="","",J1763+MIN(6-J1763-O1763,6-R$10)) ->  | M1763: =IF(C1763="","",IF(L1763<3,"",MID(Q$21,L1763*2-5+COUNTIF(C1763:H1763,I$1)+(I$1=""),1))) ->  | N1763: =IF(C1763="","",IF(J1763<3,"",MID(Q$21,J1763*2-5+COUNTIF(C1763:H1763,I$1),1))) ->  | O1763: =IF(C1763="","",COUNTIF(P$5:P$52,C1763)+COUNTIF(P$5:P$52,D1763)+COUNTIF(P$5:P$52,E1763)+COUNTIF(P$5:P$52,F1763)+COUNTIF(P$5:P$52,G1763)+COUNTIF(P$5:P$52,H1763)) -> 
A1827: =IF(C1827="","",1+A1826) ->  | C1827: =IF(Q1835="","",LARGE(Q1835:BM1835,6)) ->  | D1827: =IF(C1827="","",LARGE(Q1835:BM1835,5)) ->  | E1827: =IF(C1827="","",LARGE(Q1835:BM1835,4)) ->  | F1827: =IF(C1827="","",LARGE(Q1835:BM1835,3)) ->  | G1827: =IF(C1827="","",LARGE(Q1835:BM1835,2)) ->  | H1827: =IF(C1827="","",LARGE(Q1835:BM1835,1)) ->  | J1827: =IF(C1827="","",COUNTIF(C$1:H$1,C1827)+COUNTIF(C$1:H$1,D1827)+COUNTIF(C$1:H$1,E1827)+COUNTIF(C$1:H$1,F1827)+COUNTIF(C$1:H$1,G1827)+COUNTIF(C$1:H$1,H1827)) ->  | K1827: =IF(A1827="","",INT((A1827+11)/R$8)) ->  | L1827: =IF(C1827="","",J1827+MIN(6-J1827-O1827,6-R$10)) ->  | M1827: =IF(C1827="","",IF(L1827<3,"",MID(Q$21,L1827*2-5+COUNTIF(C1827:H1827,I$1)+(I$1=""),1))) ->  | N1827: =IF(C1827="","",IF(J1827<3,"",MID(Q$21,J1827*2-5+COUNTIF(C1827:H1827,I$1),1))) ->  | O1827: =IF(C1827="","",COUNTIF(P$5:P$52,C1827)+COUNTIF(P$5:P$52,D1827)+COUNTIF(P$5:P$52,E1827)+COUNTIF(P$5:P$52,F1827)+COUNTIF(P$5:P$52,G1827)+COUNTIF(P$5:P$52,H1827)) -> 
A1891: =IF(C1891="","",1+A1890) ->  | C1891: =IF(Q1899="","",LARGE(Q1899:BM1899,6)) ->  | D1891: =IF(C1891="","",LARGE(Q1899:BM1899,5)) ->  | E1891: =IF(C1891="","",LARGE(Q1899:BM1899,4)) ->  | F1891: =IF(C1891="","",LARGE(Q1899:BM1899,3)) ->  | G1891: =IF(C1891="","",LARGE(Q1899:BM1899,2)) ->  | H1891: =IF(C1891="","",LARGE(Q1899:BM1899,1)) ->  | J1891: =IF(C1891="","",COUNTIF(C$1:H$1,C1891)+COUNTIF(C$1:H$1,D1891)+COUNTIF(C$1:H$1,E1891)+COUNTIF(C$1:H$1,F1891)+COUNTIF(C$1:H$1,G1891)+COUNTIF(C$1:H$1,H1891)) ->  | K1891: =IF(A1891="","",INT((A1891+11)/R$8)) ->  | L1891: =IF(C1891="","",J1891+MIN(6-J1891-O1891,6-R$10)) ->  | M1891: =IF(C1891="","",IF(L1891<3,"",MID(Q$21,L1891*2-5+COUNTIF(C1891:H1891,I$1)+(I$1=""),1))) ->  | N1891: =IF(C1891="","",IF(J1891<3,"",MID(Q$21,J1891*2-5+COUNTIF(C1891:H1891,I$1),1))) ->  | O1891: =IF(C1891="","",COUNTIF(P$5:P$52,C1891)+COUNTIF(P$5:P$52,D1891)+COUNTIF(P$5:P$52,E1891)+COUNTIF(P$5:P$52,F1891)+COUNTIF(P$5:P$52,G1891)+COUNTIF(P$5:P$52,H1891)) -> 
A1955: =IF(C1955="","",1+A1954) ->  | C1955: =IF(Q1963="","",LARGE(Q1963:BM1963,6)) ->  | D1955: =IF(C1955="","",LARGE(Q1963:BM1963,5)) ->  | E1955: =IF(C1955="","",LARGE(Q1963:BM1963,4)) ->  | F1955: =IF(C1955="","",LARGE(Q1963:BM1963,3)) ->  | G1955: =IF(C1955="","",LARGE(Q1963:BM1963,2)) ->  | H1955: =IF(C1955="","",LARGE(Q1963:BM1963,1)) ->  | J1955: =IF(C1955="","",COUNTIF(C$1:H$1,C1955)+COUNTIF(C$1:H$1,D1955)+COUNTIF(C$1:H$1,E1955)+COUNTIF(C$1:H$1,F1955)+COUNTIF(C$1:H$1,G1955)+COUNTIF(C$1:H$1,H1955)) ->  | K1955: =IF(A1955="","",INT((A1955+11)/R$8)) ->  | L1955: =IF(C1955="","",J1955+MIN(6-J1955-O1955,6-R$10)) ->  | M1955: =IF(C1955="","",IF(L1955<3,"",MID(Q$21,L1955*2-5+COUNTIF(C1955:H1955,I$1)+(I$1=""),1))) ->  | N1955: =IF(C1955="","",IF(J1955<3,"",MID(Q$21,J1955*2-5+COUNTIF(C1955:H1955,I$1),1))) ->  | O1955: =IF(C1955="","",COUNTIF(P$5:P$52,C1955)+COUNTIF(P$5:P$52,D1955)+COUNTIF(P$5:P$52,E1955)+COUNTIF(P$5:P$52,F1955)+COUNTIF(P$5:P$52,G1955)+COUNTIF(P$5:P$52,H1955)) -> 
A2019: =IF(C2019="","",1+A2018) ->  | C2019: =IF(Q2027="","",LARGE(Q2027:BM2027,6)) ->  | D2019: =IF(C2019="","",LARGE(Q2027:BM2027,5)) ->  | E2019: =IF(C2019="","",LARGE(Q2027:BM2027,4)) ->  | F2019: =IF(C2019="","",LARGE(Q2027:BM2027,3)) ->  | G2019: =IF(C2019="","",LARGE(Q2027:BM2027,2)) ->  | H2019: =IF(C2019="","",LARGE(Q2027:BM2027,1)) ->  | J2019: =IF(C2019="","",COUNTIF(C$1:H$1,C2019)+COUNTIF(C$1:H$1,D2019)+COUNTIF(C$1:H$1,E2019)+COUNTIF(C$1:H$1,F2019)+COUNTIF(C$1:H$1,G2019)+COUNTIF(C$1:H$1,H2019)) ->  | K2019: =IF(A2019="","",INT((A2019+11)/R$8)) ->  | L2019: =IF(C2019="","",J2019+MIN(6-J2019-O2019,6-R$10)) ->  | M2019: =IF(C2019="","",IF(L2019<3,"",MID(Q$21,L2019*2-5+COUNTIF(C2019:H2019,I$1)+(I$1=""),1))) ->  | N2019: =IF(C2019="","",IF(J2019<3,"",MID(Q$21,J2019*2-5+COUNTIF(C2019:H2019,I$1),1))) ->  | O2019: =IF(C2019="","",COUNTIF(P$5:P$52,C2019)+COUNTIF(P$5:P$52,D2019)+COUNTIF(P$5:P$52,E2019)+COUNTIF(P$5:P$52,F2019)+COUNTIF(P$5:P$52,G2019)+COUNTIF(P$5:P$52,H2019)) -> 

Sheet oben
A1: drucke Einzelschein | B1: 1 | X1: Druck mit oberem Rand zuerst
A2: Anzahl Reihen | B2: =Reihen!R9 -> 45 | AZ2: =INDEX(Maske,1,AZ28) -> 
A3: erste Reihe | B3: =(B1-1)*Reihen!R8+1 -> 1 | BF3: Tipps | BL3: Zeile | BR3: Spalte | BY3: Matrix
A4: Zeichen | B4: x | E4: 1 | F4: 2 | G4: 3 | H4: 4 | I4: 5 | J4: 6 | K4: 7 | L4: 8 | M4: 9 | N4: 10 | O4: 11 | P4: 12 | Q4: 13 | R4: 14 | S4: 15 | T4: 16 | U4: 17 | V4: 18 | W4: 19 | X4: 20 | Y4: 21 | Z4: 22 | AA4: 23 | AB4: 24 | AC4: 25 | AD4: 26 | AE4: 27 | AF4: 28 | AG4: 29 | AH4: 30 | AI4: 31 | AJ4: 32 | AK4: 33 | AL4: 34 | AM4: 35 | AN4: 36 | AO4: 37 | AP4: 38 | AQ4: 39 | AR4: 40 | AS4: 41 | AT4: 42 | AU4: 43 | AV4: 44 | AW4: 45 | AX4: 46 | BD4: 1 | BE4: 2 | BF4: 3 | BG4: 4 | BH4: 5 | BI4: 6 | BJ4: 1 | BK4: 2 | BL4: 3 | BM4: 4 | BN4: 5 | BO4: 6 | BP4: 1 | BQ4: 2 | BR4: 3 | BS4: 4 | BT4: 5 | BU4: 6 | BW4: 1 | BX4: 2 | BY4: 3 | BZ4: 4 | CA4: 5 | CB4: 6
D5: 1 | E5: =IF(COUNTIF(Matrix,$D5*100+E$4)>0,"x","") ->  | O5: =IF(COUNTIF(Matrix,$D5*100+O$4)>0,"x","") ->  | Y5: =IF(COUNTIF(Matrix,$D5*100+Y$4)>0,"x","") ->  | AI5: =IF(COUNTIF(Matrix,$D5*100+AI$4)>0,"x","") ->  | AS5: =IF(COUNTIF(Matrix,$D5*100+AS$4)>0,"x","") ->  | BC5: =IF(BV5>Felder_je_Schein,"",IF(B$3+BV5>B$2+1,"",B$3+BV5-1)) -> 1 | BD5: =IF($BC5="","",INDEX(alle_Tipps,$BC5,BD$4)) -> 1 | BE5: 3 | BF5: 13 | BG5: 24 | BH5: 28 | BI5: 29 | BJ5: =IF($BC5="","",ISEVEN($BV5)*Block2+INT((BD5-1)/Feldbreite)+2) -> 2 | BK5: =IF($BC5="","",ISEVEN($BV5)*Block2+INT((BE5-1)/Feldbreite)+2) -> 2 | BL5: =IF($BC5="","",ISEVEN($BV5)*Block2+INT((BF5-1)/Feldbreite)+2) -> 3 | BM5: =IF($BC5="","",ISEVEN($BV5)*Block2+INT((BG5-1)/Feldbreite)+2) -> 5 | BN5: =IF($BC5="","",ISEVEN($BV5)*Block2+INT((BH5-1)/Feldbreite)+2) -> 5 | BO5: =IF($BC5="","",ISEVEN($BV5)*Block2+INT((BI5-1)/Feldbreite)+2) -> 6 | BP5: =IF($BC5="","",INT(($BV5-1)/2)*Feldbreite+waagerecht1+MOD(BD5-1,Feldbreite)) -> 4 | BQ5: =IF($BC5="","",INT(($BV5-1)/2)*Feldbreite+waagerecht1+MOD(BE5-1,Feldbreite)) -> 6 | BR5: =IF($BC5="","",INT(($BV5-1)/2)*Feldbreite+waagerecht1+MOD(BF5-1,Feldbreite)) -> 9 | BS5: =IF($BC5="","",INT(($BV5-1)/2)*Feldbreite+waagerecht1+MOD(BG5-1,Feldbreite)) -> 6 | BT5: =IF($BC5="","",INT(($BV5-1)/2)*Feldbreite+waagerecht1+MOD(BH5-1,Feldbreite)) -> 10 | BU5: =IF($BC5="","",INT(($BV5-1)/2)*Feldbreite+waagerecht1+MOD(BI5-1,Feldbreite)) -> 4 | BV5: 1 | BW5: =IF($BC5="","",BJ5*100+BP5) -> 204 | BX5: =IF($BC5="","",BK5*100+BQ5) -> 206 | BY5: 309 | BZ5: 506 | CA5: 510 | CB5: 604
D6: 2 | H6: x | J6: x | O6: x | Q6: x | W6: x | Y6: x | AB6: x | AD6: x | AF6: x | AK6: x | AM6: x | AR6: x | AW6: x | BC6: 2 | BD6: 2 | BE6: 3 | BF6: 14 | BG6: 17 | BH6: 25 | BI6: 45 | BJ6: 9 | BK6: 9 | BL6: 10 | BM6: 11 | BN6: 12 | BO6: 15 | BP6: 5 | BQ6: 6 | BR6: 10 | BS6: 6 | BT6: 7 | BU6: 6 | BV6: 2 | BW6: =IF($BC6="","",BJ6*100+BP6) -> 905 | BX6: =IF($BC6="","",BK6*100+BQ6) -> 906 | BY6: =IF($BC6="","",BL6*100+BR6) -> 1010 | BZ6: =IF($BC6="","",BM6*100+BS6) -> 1106 | CA6: =IF($BC6="","",BN6*100+BT6) -> 1207 | CB6: =IF($BC6="","",BO6*100+BU6) -> 1506
D7: 3 | M7: x | U7: x | V7: x | AH7: x | AI7: x | AO7: x | AV7: x | BC7: 3 | BD7: 1 | BE7: 3 | BF7: 14 | BG7: 15 | BH7: 26 | BI7: 47 | BJ7: 2 | BK7: 2 | BL7: 3 | BM7: 4 | BN7: 5 | BO7: 8 | BP7: 11 | BQ7: 13 | BR7: 17 | BS7: 11 | BT7: 15 | BU7: 15 | BV7: 3 | BW7: 211 | BX7: 213 | BY7: 317 | BZ7: 411 | CA7: 515 | CB7: 815
D8: 4 | O8: x | AN8: x | AS8: x | BC8: 4 | BD8: 1 | BE8: 3 | BF8: 21 | BG8: 22 | BH8: 27 | BI8: 29 | BJ8: 9 | BK8: 9 | BL8: 11 | BM8: 12 | BN8: 12 | BO8: 13 | BP8: 11 | BQ8: 13 | BR8: 17 | BS8: 11 | BT8: 16 | BU8: 11 | BV8: 4 | BW8: 911 | BX8: 913 | BY8: 1117 | BZ8: 1211 | CA8: 1216 | CB8: 1311
D9: 5 | J9: x | N9: x | S9: x | AE9: x | AF9: x | AN9: x | AO9: x | AT9: x | AU9: x | BC9: 5 | BD9: 2 | BE9: 4 | BF9: 7 | BG9: 8 | BH9: 35 | BI9: 44 | BJ9: 2 | BK9: 2 | BL9: 2 | BM9: 3 | BN9: 6 | BO9: 8 | BP9: 19 | BQ9: 21 | BR9: 24 | BS9: 18 | BT9: 24 | BU9: 19 | BV9: 5 | BW9: 219 | BX9: 221 | BY9: 224 | BZ9: 318 | CA9: 624 | CB9: 819
D10: 6 | H10: x | AB10: x | BC10: 6 | BD10: 2 | BE10: 4 | BF10: 7 | BG10: 19 | BH10: 42 | BI10: 43 | BJ10: 9 | BK10: 9 | BL10: 9 | BM10: 11 | BN10: 14 | BO10: 15 | BP10: 19 | BQ10: 21 | BR10: 24 | BS10: 22 | BT10: 24 | BU10: 18 | BV10: 6 | BW10: 919 | BX10: 921 | BY10: 924 | BZ10: 1122 | CA10: 1424 | CB10: 1518
A11: Makro Druck Scheine | B11: =Reihen!R2 -> 4 | D11: 7 | BC11: 7 | BD11: 2 | BE11: 4 | BF11: 13 | BG11: 14 | BH11: 24 | BI11: 25 | BJ11: 2 | BK11: 2 | BL11: 3 | BM11: 3 | BN11: 5 | BO11: 5 | BP11: 26 | BQ11: 28 | BR11: 30 | BS11: 31 | BT11: 27 | BU11: 28 | BV11: 7 | BW11: 226 | BX11: 228 | BY11: 330 | BZ11: 331 | CA11: 527 | CB11: 528
A12: von | B12: 1 | D12: 8 | S12: x | W12: x | BC12: 8 | BD12: 2 | BE12: 4 | BF12: 13 | BG12: 17 | BH12: 22 | BI12: 29 | BJ12: 9 | BK12: 9 | BL12: 10 | BM12: 11 | BN12: 12 | BO12: 13 | BP12: 26 | BQ12: 28 | BR12: 30 | BS12: 27 | BT12: 25 | BU12: 25 | BV12: 8 | BW12: 926 | BX12: 928 | BY12: 1030 | BZ12: 1127 | CA12: 1225 | CB12: 1325
A13: bis | B13: 0 | D13: 9 | I13: x | J13: x | O13: x | Q13: x | W13: x | Y13: x | AB13: x | AD13: x | AF13: x | AK13: x | AM13: x | AR13: x | AW13: x | BC13: 9 | BD13: 2 | BE13: 4 | BF13: 13 | BG13: 19 | BH13: 26 | BI13: 27 | BJ13: 2 | BK13: 2 | BL13: 3 | BM13: 4 | BN13: 5 | BO13: 5 | BP13: 33 | BQ13: 35 | BR13: 37 | BS13: 36 | BT13: 36 | BU13: 37 | BV13: 9 | BW13: 233 | BX13: 235 | BY13: 337 | BZ13: 436 | CA13: 536 | CB13: 537
D14: 10 | N14: x | AH14: x | AW14: x | BC14: 10 | BD14: 2 | BE14: 4 | BF14: 17 | BG14: 19 | BH14: 22 | BI14: 27 | BJ14: 9 | BK14: 9 | BL14: 11 | BM14: 11 | BN14: 12 | BO14: 12 | BP14: 33 | BQ14: 35 | BR14: 34 | BS14: 36 | BT14: 32 | BU14: 37 | BV14: 10 | BW14: 933 | BX14: 935 | BY14: 1134 | BZ14: 1136 | CA14: 1232 | CB14: 1237
D15: 11 | E15: =IF(COUNTIF(Matrix,$D15*100+E$4)>0,"x","") ->  | J15: x | O15: =IF(COUNTIF(Matrix,$D15*100+O$4)>0,"x","") ->  | U15: x | Y15: =IF(COUNTIF(Matrix,$D15*100+Y$4)>0,"x","") ->  | Z15: x | AE15: x | AI15: =IF(COUNTIF(Matrix,$D15*100+AI$4)>0,"x","") ->  | AL15: x | AN15: x | AS15: =IF(COUNTIF(Matrix,$D15*100+AS$4)>0,"x","") ->  | BC15: 11 | BD15: 2 | BE15: 7 | BF15: 13 | BG15: 17 | BH15: 25 | BI15: 26 | BJ15: 2 | BK15: 2 | BL15: 3 | BM15: 4 | BN15: 5 | BO15: 5 | BP15: 40 | BQ15: 45 | BR15: 44 | BS15: 41 | BT15: 42 | BU15: 43 | BV15: 11 | BW15: 240 | BX15: 245 | BY15: 344 | BZ15: 441 | CA15: 542 | CB15: 543
D16: 12 | K16: x | O16: x | T16: x | AC16: x | AJ16: x | AO16: x | AQ16: x | AS16: x | BC16: 12 | BD16: 2 | BE16: 7 | BF16: 14 | BG16: 22 | BH16: 24 | BI16: 29 | BJ16: 9 | BK16: 9 | BL16: 10 | BM16: 12 | BN16: 12 | BO16: 13 | BP16: 40 | BQ16: 45 | BR16: 45 | BS16: 39 | BT16: 41 | BU16: 39 | BV16: 12 | BW16: 940 | BX16: 945 | BY16: 1045 | BZ16: 1239 | CA16: 1241 | CB16: 1339
D17: 13 | O17: x | AC17: x | AQ17: x
D18: 14 | AB18: x
D19: 15 | J19: x | V19: x
D20: 16
D21: 1 | E21: =IF(INDEX(Fusszeilen,$D21,E$4)="","",IF(INDEX(Fusszeilen,$D21,E$4)="h",INT($B$1/100),IF(INDEX(Fusszeilen,$D21,E$4)="z",MOD(INT($B$1/10),10),IF(INDEX(Fusszeilen,$D21,E$4)="e",MOD($B$1,10),INDEX(Fusszeilen,$D21,E$4))))) ->  | O21: =IF(INDEX(Fusszeilen,$D21,O$4)="","",IF(INDEX(Fusszeilen,$D21,O$4)="h",INT($B$1/100),IF(INDEX(Fusszeilen,$D21,O$4)="z",MOD(INT($B$1/10),10),IF(INDEX(Fusszeilen,$D21,O$4)="e",MOD($B$1,10),INDEX(Fusszeilen,$D21,O$4))))) ->  | Y21: =IF(INDEX(Fusszeilen,$D21,Y$4)="","",IF(INDEX(Fusszeilen,$D21,Y$4)="h",INT($B$1/100),IF(INDEX(Fusszeilen,$D21,Y$4)="z",MOD(INT($B$1/10),10),IF(INDEX(Fusszeilen,$D21,Y$4)="e",MOD($B$1,10),INDEX(Fusszeilen,$D21,Y$4))))) ->  | AI21: =IF(INDEX(Fusszeilen,$D21,AI$4)="","",IF(INDEX(Fusszeilen,$D21,AI$4)="h",INT($B$1/100),IF(INDEX(Fusszeilen,$D21,AI$4)="z",MOD(INT($B$1/10),10),IF(INDEX(Fusszeilen,$D21,AI$4)="e",MOD($B$1,10),INDEX(Fusszeilen,$D21,AI$4))))) ->  | AS21: =IF(INDEX(Fusszeilen,$D21,AS$4)="","",IF(INDEX(Fusszeilen,$D21,AS$4)="h",INT($B$1/100),IF(INDEX(Fusszeilen,$D21,AS$4)="z",MOD(INT($B$1/10),10),IF(INDEX(Fusszeilen,$D21,AS$4)="e",MOD($B$1,10),INDEX(Fusszeilen,$D21,AS$4))))) -> 
D22: 2
D23: 3 | AO23: 0 | AP23: 0 | AQ23: 1
D24: 4
D25: 5 | W25: x | AB25: x
D26: 6
D27: 7

Sheet links
A1: drucke Einzelschein | B1: 1 | P1: Druck mit linkem Rand zuerst
A2: Anzahl Reihen | B2: =Reihen!R9 -> 45
A3: erste Reihe | B3: =(B1-1)*Reihen!R8+1 -> 1 | BF3: Tipps | BL3: Spalte | BR3: Zeile | BY3: Matrix
A4: Zeichen | B4: x | E4: 7 | F4: 6 | G4: 5 | H4: 4 | I4: 3 | J4: 2 | K4: 1 | L4: 16 | M4: 15 | N4: 14 | O4: 13 | P4: 12 | Q4: 11 | R4: 10 | S4: 9 | T4: 8 | U4: 7 | V4: 6 | W4: 5 | X4: 4 | Y4: 3 | Z4: 2 | AA4: 1 | BD4: 1 | BE4: 2 | BF4: 3 | BG4: 4 | BH4: 5 | BI4: 6 | BJ4: 1 | BK4: 2 | BL4: 3 | BM4: 4 | BN4: 5 | BO4: 6 | BP4: 1 | BQ4: 2 | BR4: 3 | BS4: 4 | BT4: 5 | BU4: 6 | BW4: 1 | BX4: 2 | BY4: 3 | BZ4: 4 | CA4: 5 | CB4: 6
D5: 1 | E5: =IF(INDEX(Fusszeilen,E$4,$D5)="","",IF(INDEX(Fusszeilen,E$4,$D5)="h",INT($B$1/100),IF(INDEX(Fusszeilen,E$4,$D5)="z",MOD(INT($B$1/10),10),IF(INDEX(Fusszeilen,E$4,$D5)="e",MOD($B$1,10),INDEX(Fusszeilen,E$4,$D5))))) ->  | L5: =IF(COUNTIF(Matrix,L$4*100+$D5)>0,"x","") ->  | BC5: =IF(BV5>Felder_je_Schein,"",IF(B$3+BV5>B$2+1,"",B$3+BV5-1)) -> 1 | BD5: =IF($BC5="","",INDEX(alle_Tipps,$BC5,BD$4)) -> 1 | BE5: 3 | BF5: 13 | BG5: 24 | BH5: 28 | BI5: 29 | BJ5: =IF($BC5="","",ISEVEN($BV5)*Block2+INT((BD5-1)/Feldbreite)+2) -> 2 | BK5: =IF($BC5="","",ISEVEN($BV5)*Block2+INT((BE5-1)/Feldbreite)+2) -> 2 | BL5: =IF($BC5="","",ISEVEN($BV5)*Block2+INT((BF5-1)/Feldbreite)+2) -> 3 | BM5: =IF($BC5="","",ISEVEN($BV5)*Block2+INT((BG5-1)/Feldbreite)+2) -> 5 | BN5: =IF($BC5="","",ISEVEN($BV5)*Block2+INT((BH5-1)/Feldbreite)+2) -> 5 | BO5: =IF($BC5="","",ISEVEN($BV5)*Block2+INT((BI5-1)/Feldbreite)+2) -> 6 | BP5: =IF($BC5="","",INT(($BV5-1)/2)*Feldbreite+waagerecht1+MOD(BD5-1,Feldbreite)) -> 4 | BQ5: =IF($BC5="","",INT(($BV5-1)/2)*Feldbreite+waagerecht1+MOD(BE5-1,Feldbreite)) -> 6 | BR5: =IF($BC5="","",INT(($BV5-1)/2)*Feldbreite+waagerecht1+MOD(BF5-1,Feldbreite)) -> 9 | BS5: =IF($BC5="","",INT(($BV5-1)/2)*Feldbreite+waagerecht1+MOD(BG5-1,Feldbreite)) -> 6 | BT5: =IF($BC5="","",INT(($BV5-1)/2)*Feldbreite+waagerecht1+MOD(BH5-1,Feldbreite)) -> 10 | BU5: =IF($BC5="","",INT(($BV5-1)/2)*Feldbreite+waagerecht1+MOD(BI5-1,Feldbreite)) -> 4 | BV5: 1 | BW5: =IF($BC5="","",BJ5*100+BP5) -> 204 | BX5: =IF($BC5="","",BK5*100+BQ5) -> 206 | BY5: 309 | BZ5: 506 | CA5: 510 | CB5: 604
D6: 2 | BC6: 2 | BD6: 2 | BE6: 3 | BF6: 14 | BG6: 17 | BH6: 25 | BI6: 45 | BJ6: 9 | BK6: 9 | BL6: 10 | BM6: 11 | BN6: 12 | BO6: 15 | BP6: 5 | BQ6: 6 | BR6: 10 | BS6: 6 | BT6: 7 | BU6: 6 | BV6: 2 | BW6: =IF($BC6="","",BJ6*100+BP6) -> 905 | BX6: 906 | BY6: 1010 | BZ6: 1106 | CA6: 1207 | CB6: 1506
D7: 3 | BC7: 3 | BD7: 1 | BE7: 3 | BF7: 14 | BG7: 15 | BH7: 26 | BI7: 47 | BJ7: 2 | BK7: 2 | BL7: 3 | BM7: 4 | BN7: 5 | BO7: 8 | BP7: 11 | BQ7: 13 | BR7: 17 | BS7: 11 | BT7: 15 | BU7: 15 | BV7: 3 | BW7: 211 | BX7: 213 | BY7: 317 | BZ7: 411 | CA7: 515 | CB7: 815
D8: 4 | V8: x | Z8: x | BC8: 4 | BD8: 1 | BE8: 3 | BF8: 21 | BG8: 22 | BH8: 27 | BI8: 29 | BJ8: 9 | BK8: 9 | BL8: 11 | BM8: 12 | BN8: 12 | BO8: 13 | BP8: 11 | BQ8: 13 | BR8: 17 | BS8: 11 | BT8: 16 | BU8: 11 | BV8: 4 | BW8: 911 | BX8: 913 | BY8: 1117 | BZ8: 1211 | CA8: 1216 | CB8: 1311
D9: 5 | S9: x | BC9: 5 | BD9: 2 | BE9: 4 | BF9: 7 | BG9: 8 | BH9: 35 | BI9: 44 | BJ9: 2 | BK9: 2 | BL9: 2 | BM9: 3 | BN9: 6 | BO9: 8 | BP9: 19 | BQ9: 21 | BR9: 24 | BS9: 18 | BT9: 24 | BU9: 19 | BV9: 5 | BW9: 219 | BX9: 221 | BY9: 224 | BZ9: 318 | CA9: 624 | CB9: 819
D10: 6 | M10: x | Q10: x | S10: x | W10: x | Z10: x | BC10: 6 | BD10: 2 | BE10: 4 | BF10: 7 | BG10: 19 | BH10: 42 | BI10: 43 | BJ10: 9 | BK10: 9 | BL10: 9 | BM10: 11 | BN10: 14 | BO10: 15 | BP10: 19 | BQ10: 21 | BR10: 24 | BS10: 22 | BT10: 24 | BU10: 18 | BV10: 6 | BW10: 919 | BX10: 921 | BY10: 924 | BZ10: 1122 | CA10: 1424 | CB10: 1518
A11: Makro Druck Scheine | B11: =Reihen!R2 -> 4 | D11: 7 | P11: x | BC11: 7 | BD11: 2 | BE11: 4 | BF11: 13 | BG11: 14 | BH11: 24 | BI11: 25 | BJ11: 2 | BK11: 2 | BL11: 3 | BM11: 3 | BN11: 5 | BO11: 5 | BP11: 26 | BQ11: 28 | BR11: 30 | BS11: 31 | BT11: 27 | BU11: 28 | BV11: 7 | BW11: 226 | BX11: 228 | BY11: 330 | BZ11: 331 | CA11: 527 | CB11: 528
A12: von | B12: 2 | D12: 8 | BC12: 8 | BD12: 2 | BE12: 4 | BF12: 13 | BG12: 17 | BH12: 22 | BI12: 29 | BJ12: 9 | BK12: 9 | BL12: 10 | BM12: 11 | BN12: 12 | BO12: 13 | BP12: 26 | BQ12: 28 | BR12: 30 | BS12: 27 | BT12: 25 | BU12: 25 | BV12: 8 | BW12: 926 | BX12: 928 | BY12: 1030 | BZ12: 1127 | CA12: 1225 | CB12: 1325
A13: bis | B13: 0 | D13: 9 | Y13: x | BC13: 9 | BD13: 2 | BE13: 4 | BF13: 13 | BG13: 19 | BH13: 26 | BI13: 27 | BJ13: 2 | BK13: 2 | BL13: 3 | BM13: 4 | BN13: 5 | BO13: 5 | BP13: 33 | BQ13: 35 | BR13: 37 | BS13: 36 | BT13: 36 | BU13: 37 | BV13: 9 | BW13: 233 | BX13: 235 | BY13: 337 | BZ13: 436 | CA13: 536 | CB13: 537
D14: 10 | R14: x | W14: x | BC14: 10 | BD14: 2 | BE14: 4 | BF14: 17 | BG14: 19 | BH14: 22 | BI14: 27 | BJ14: 9 | BK14: 9 | BL14: 11 | BM14: 11 | BN14: 12 | BO14: 12 | BP14: 33 | BQ14: 35 | BR14: 34 | BS14: 36 | BT14: 32 | BU14: 37 | BV14: 10 | BW14: 933 | BX14: 935 | BY14: 1134 | BZ14: 1136 | CA14: 1232 | CB14: 1237
D15: 11 | E15: =IF(INDEX(Fusszeilen,E$4,$D15)="","",IF(INDEX(Fusszeilen,E$4,$D15)="h",INT($B$1/100),IF(INDEX(Fusszeilen,E$4,$D15)="z",MOD(INT($B$1/10),10),IF(INDEX(Fusszeilen,E$4,$D15)="e",MOD($B$1,10),INDEX(Fusszeilen,E$4,$D15))))) ->  | L15: =IF(COUNTIF(Matrix,L$4*100+$D15)>0,"x","") ->  | O15: x | P15: x | S15: x | X15: x | Z15: x | BC15: 11 | BD15: 2 | BE15: 7 | BF15: 13 | BG15: 17 | BH15: 25 | BI15: 26 | BJ15: 2 | BK15: 2 | BL15: 3 | BM15: 4 | BN15: 5 | BO15: 5 | BP15: 40 | BQ15: 45 | BR15: 44 | BS15: 41 | BT15: 42 | BU15: 43 | BV15: 11 | BW15: 240 | BX15: 245 | BY15: 344 | BZ15: 441 | CA15: 542 | CB15: 543
D16: 12 | BC16: 12 | BD16: 2 | BE16: 7 | BF16: 14 | BG16: 22 | BH16: 24 | BI16: 29 | BJ16: 9 | BK16: 9 | BL16: 10 | BM16: 12 | BN16: 12 | BO16: 13 | BP16: 40 | BQ16: 45 | BR16: 45 | BS16: 39 | BT16: 41 | BU16: 39 | BV16: 12 | BW16: 940 | BX16: 945 | BY16: 1045 | BZ16: 1239 | CA16: 1241 | CB16: 1339
D17: 13 | S17: x | Z17: x
D18: 14
D19: 15 | T19: x | W19: x
D20: 16 | P20: x
D21: 17 | Q21: x | Y21: x
D22: 18 | M22: x | Y22: x
D23: 19 | G23: x | S23: x | T23: x | Z23: x
D24: 20
D25: 21 | E25: =IF(INDEX(Fusszeilen,E$4,$D25)="","",IF(INDEX(Fusszeilen,E$4,$D25)="h",INT($B$1/100),IF(INDEX(Fusszeilen,E$4,$D25)="z",MOD(INT($B$1/10),10),IF(INDEX(Fusszeilen,E$4,$D25)="e",MOD($B$1,10),INDEX(Fusszeilen,E$4,$D25))))) ->  | L25: =IF(COUNTIF(Matrix,L$4*100+$D25)>0,"x","") ->  | S25: x | Z25: x
D26: 22 | Q26: x
D27: 23
D28: 24 | G28: x | N28: x | S28: x | V28: x | Z28: x
D29: 25 | O29: x | P29: x
D30: 26 | S30: x | Z30: x
D31: 27 | Q31: x | W31: x
D32: 28 | S32: x | W32: x | Z32: x
D33: 29
D34: 30 | R34: x | Y34: x
D35: 31 | E35: =IF(INDEX(Fusszeilen,E$4,$D35)="","",IF(INDEX(Fusszeilen,E$4,$D35)="h",INT($B$1/100),IF(INDEX(Fusszeilen,E$4,$D35)="z",MOD(INT($B$1/10),10),IF(INDEX(Fusszeilen,E$4,$D35)="e",MOD($B$1,10),INDEX(Fusszeilen,E$4,$D35))))) ->  | L35: =IF(COUNTIF(Matrix,L$4*100+$D35)>0,"x","") ->  | Y35: x
D36: 32 | P36: x
D37: 33 | S37: x | Z37: x
D38: 34 | Q38: x
D39: 35 | S39: x | Z39: x
D40: 36 | Q40: x | W40: x | X40: x
D41: 37 | I41: 0 | P41: x | W41: x | Y41: x
D42: 38 | I42: 0
D43: 39 | I43: 1 | O43: x | P43: x
D44: 40 | S44: x | Z44: x
D45: 41 | E45: =IF(INDEX(Fusszeilen,E$4,$D45)="","",IF(INDEX(Fusszeilen,E$4,$D45)="h",INT($B$1/100),IF(INDEX(Fusszeilen,E$4,$D45)="z",MOD(INT($B$1/10),10),IF(INDEX(Fusszeilen,E$4,$D45)="e",MOD($B$1,10),INDEX(Fusszeilen,E$4,$D45))))) ->  | L45: =IF(COUNTIF(Matrix,L$4*100+$D45)>0,"x","") ->  | P45: x | X45: x
D46: 42 | W46: x
D47: 43 | W47: x
D48: 44 | Y48: x
D49: 45 | R49: x | S49: x | Z49: x
D50: 46

Sheet rechts
A1: drucke Einzelschein | B1: 2 | P1: Druck mit rechtem Rand zuerst
A2: Anzahl Reihen | B2: =Reihen!R9 -> 45
A3: erste Reihe | B3: =(B1-1)*Reihen!R8+1 -> 13 | BF3: Tipps | BL3: Spalte | BR3: Zeile | BY3: Matrix
A4: Zeichen | B4: x | E4: 1 | F4: 2 | G4: 3 | H4: 4 | I4: 5 | J4: 6 | K4: 7 | L4: 8 | M4: 9 | N4: 10 | O4: 11 | P4: 12 | Q4: 13 | R4: 14 | S4: 15 | T4: 16 | U4: 1 | V4: 2 | W4: 3 | X4: 4 | Y4: 5 | Z4: 6 | AA4: 7 | BD4: 1 | BE4: 2 | BF4: 3 | BG4: 4 | BH4: 5 | BI4: 6 | BJ4: 1 | BK4: 2 | BL4: 3 | BM4: 4 | BN4: 5 | BO4: 6 | BP4: 1 | BQ4: 2 | BR4: 3 | BS4: 4 | BT4: 5 | BU4: 6 | BW4: 1 | BX4: 2 | BY4: 3 | BZ4: 4 | CA4: 5 | CB4: 6
D5: 46 | E5: =IF(COUNTIF(Matrix,E$4*100+$D5)>0,"x","") ->  | U5: =IF(INDEX(Fusszeilen,U$4,$D5)="","",IF(INDEX(Fusszeilen,U$4,$D5)="h",INT($B$1/100),IF(INDEX(Fusszeilen,U$4,$D5)="z",MOD(INT($B$1/10),10),IF(INDEX(Fusszeilen,U$4,$D5)="e",MOD($B$1,10),INDEX(Fusszeilen,U$4,$D5))))) ->  | BC5: =IF(BV5>Felder_je_Schein,"",IF(B$3+BV5>B$2+1,"",B$3+BV5-1)) -> 13 | BD5: =IF($BC5="","",INDEX(alle_Tipps,$BC5,BD$4)) -> 2 | BE5: 7 | BF5: 19 | BG5: 24 | BH5: 25 | BI5: 29 | BJ5: =IF($BC5="","",ISEVEN($BV5)*Block2+INT((BD5-1)/Feldbreite)+2) -> 2 | BK5: =IF($BC5="","",ISEVEN($BV5)*Block2+INT((BE5-1)/Feldbreite)+2) -> 2 | BL5: =IF($BC5="","",ISEVEN($BV5)*Block2+INT((BF5-1)/Feldbreite)+2) -> 4 | BM5: =IF($BC5="","",ISEVEN($BV5)*Block2+INT((BG5-1)/Feldbreite)+2) -> 5 | BN5: =IF($BC5="","",ISEVEN($BV5)*Block2+INT((BH5-1)/Feldbreite)+2) -> 5 | BO5: =IF($BC5="","",ISEVEN($BV5)*Block2+INT((BI5-1)/Feldbreite)+2) -> 6 | BP5: =IF($BC5="","",INT(($BV5-1)/2)*Feldbreite+waagerecht1+MOD(BD5-1,Feldbreite)) -> 5 | BQ5: =IF($BC5="","",INT(($BV5-1)/2)*Feldbreite+waagerecht1+MOD(BE5-1,Feldbreite)) -> 10 | BR5: =IF($BC5="","",INT(($BV5-1)/2)*Feldbreite+waagerecht1+MOD(BF5-1,Feldbreite)) -> 8 | BS5: =IF($BC5="","",INT(($BV5-1)/2)*Feldbreite+waagerecht1+MOD(BG5-1,Feldbreite)) -> 6 | BT5: =IF($BC5="","",INT(($BV5-1)/2)*Feldbreite+waagerecht1+MOD(BH5-1,Feldbreite)) -> 7 | BU5: =IF($BC5="","",INT(($BV5-1)/2)*Feldbreite+waagerecht1+MOD(BI5-1,Feldbreite)) -> 4 | BV5: 1 | BW5: =IF($BC5="","",BJ5*100+BP5) -> 205 | BX5: =IF($BC5="","",BK5*100+BQ5) -> 210 | BY5: 408 | BZ5: 506 | CA5: 507 | CB5: 604
D6: 45 | F6: x | M6: x | N6: x | BC6: 14 | BD6: 2 | BE6: 7 | BF6: 20 | BG6: 25 | BH6: 27 | BI6: 29 | BJ6: 9 | BK6: 9 | BL6: 11 | BM6: 12 | BN6: 12 | BO6: 13 | BP6: 5 | BQ6: 10 | BR6: 9 | BS6: 7 | BT6: 9 | BU6: 4 | BV6: 2 | BW6: =IF($BC6="","",BJ6*100+BP6) -> 905 | BX6: 910 | BY6: 1109 | BZ6: 1207 | CA6: 1209 | CB6: 1304
D7: 44 | G7: x | H7: x | I7: x | O7: x | BC7: 15 | BD7: 2 | BE7: 10 | BF7: 13 | BG7: 19 | BH7: 22 | BI7: 24 | BJ7: 2 | BK7: 3 | BL7: 3 | BM7: 4 | BN7: 5 | BO7: 5 | BP7: 12 | BQ7: 13 | BR7: 16 | BS7: 15 | BT7: 11 | BU7: 13 | BV7: 3 | BW7: 212 | BX7: 313 | BY7: 316 | BZ7: 415 | CA7: 511 | CB7: 513
D8: 43 | P8: x | BC8: 16 | BD8: 2 | BE8: 10 | BF8: 14 | BG8: 17 | BH8: 22 | BI8: 25 | BJ8: 9 | BK8: 10 | BL8: 10 | BM8: 11 | BN8: 12 | BO8: 12 | BP8: 12 | BQ8: 13 | BR8: 17 | BS8: 13 | BT8: 11 | BU8: 14 | BV8: 4 | BW8: 912 | BX8: 1013 | BY8: 1017 | BZ8: 1113 | CA8: 1211 | CB8: 1214
D9: 42 | P9: x | BC9: 17 | BD9: 2 | BE9: 10 | BF9: 14 | BG9: 25 | BH9: 27 | BI9: 29 | BJ9: 2 | BK9: 3 | BL9: 3 | BM9: 5 | BN9: 5 | BO9: 6 | BP9: 19 | BQ9: 20 | BR9: 24 | BS9: 21 | BT9: 23 | BU9: 18 | BV9: 5 | BW9: 219 | BX9: 320 | BY9: 324 | BZ9: 521 | CA9: 523 | CB9: 618
D10: 41 | F10: x | M10: x | BC10: 18 | BD10: 3 | BE10: 4 | BF10: 13 | BG10: 19 | BH10: 22 | BI10: 24 | BJ10: 9 | BK10: 9 | BL10: 10 | BM10: 11 | BN10: 12 | BO10: 12 | BP10: 20 | BQ10: 21 | BR10: 23 | BS10: 22 | BT10: 18 | BU10: 20 | BV10: 6 | BW10: 920 | BX10: 921 | BY10: 1023 | BZ10: 1122 | CA10: 1218 | CB10: 1220
A11: Makro Druck Scheine | B11: =Reihen!R2 -> 4 | D11: 40 | BC11: 19 | BD11: 3 | BE11: 4 | BF11: 13 | BG11: 24 | BH11: 27 | BI11: 29 | BJ11: 2 | BK11: 2 | BL11: 3 | BM11: 5 | BN11: 5 | BO11: 6 | BP11: 27 | BQ11: 28 | BR11: 30 | BS11: 27 | BT11: 30 | BU11: 25 | BV11: 7 | BW11: 227 | BX11: 228 | BY11: 330 | BZ11: 527 | CA11: 530 | CB11: 625
A12: von | B12: 3 | D12: 39 | I12: x | W12: 2 | BC12: 20 | BD12: 3 | BE12: 4 | BF12: 14 | BG12: 25 | BH12: 27 | BI12: 29 | BJ12: 9 | BK12: 9 | BL12: 10 | BM12: 12 | BN12: 12 | BO12: 13 | BP12: 27 | BQ12: 28 | BR12: 31 | BS12: 28 | BT12: 30 | BU12: 25 | BV12: 8 | BW12: 927 | BX12: 928 | BY12: 1031 | BZ12: 1228 | CA12: 1230 | CB12: 1325
A13: bis | B13: 0 | D13: 38 | W13: 0 | BC13: 21 | BD13: 3 | BE13: 4 | BF13: 17 | BG13: 19 | BH13: 26 | BI13: 29 | BJ13: 2 | BK13: 2 | BL13: 4 | BM13: 4 | BN13: 5 | BO13: 6 | BP13: 34 | BQ13: 35 | BR13: 34 | BS13: 36 | BT13: 36 | BU13: 32 | BV13: 9 | BW13: 234 | BX13: 235 | BY13: 434 | BZ13: 436 | CA13: 536 | CB13: 632
D14: 37 | P14: x | W14: 0 | BC14: 22 | BD14: 3 | BE14: 4 | BF14: 17 | BG14: 22 | BH14: 25 | BI14: 27 | BJ14: 9 | BK14: 9 | BL14: 11 | BM14: 12 | BN14: 12 | BO14: 12 | BP14: 34 | BQ14: 35 | BR14: 34 | BS14: 32 | BT14: 35 | BU14: 37 | BV14: 10 | BW14: 934 | BX14: 935 | BY14: 1134 | BZ14: 1232 | CA14: 1235 | CB14: 1237
D15: 36 | E15: =IF(COUNTIF(Matrix,E$4*100+$D15)>0,"x","") ->  | H15: x | I15: x | U15: =IF(INDEX(Fusszeilen,U$4,$D15)="","",IF(INDEX(Fusszeilen,U$4,$D15)="h",INT($B$1/100),IF(INDEX(Fusszeilen,U$4,$D15)="z",MOD(INT($B$1/10),10),IF(INDEX(Fusszeilen,U$4,$D15)="e",MOD($B$1,10),INDEX(Fusszeilen,U$4,$D15))))) ->  | BC15: 23 | BD15: 3 | BE15: 7 | BF15: 13 | BG15: 20 | BH15: 22 | BI15: 27 | BJ15: 2 | BK15: 2 | BL15: 3 | BM15: 4 | BN15: 5 | BO15: 5 | BP15: 41 | BQ15: 45 | BR15: 44 | BS15: 44 | BT15: 39 | BU15: 44 | BV15: 11 | BW15: 241 | BX15: 245 | BY15: 344 | BZ15: 444 | CA15: 539 | CB15: 544
D16: 35 | F16: x | M16: x | P16: x | BC16: 24 | BD16: 3 | BE16: 7 | BF16: 14 | BG16: 20 | BH16: 25 | BI16: 26 | BJ16: 9 | BK16: 9 | BL16: 10 | BM16: 11 | BN16: 12 | BO16: 12 | BP16: 41 | BQ16: 45 | BR16: 45 | BS16: 44 | BT16: 42 | BU16: 43 | BV16: 12 | BW16: 941 | BX16: 945 | BY16: 1045 | BZ16: 1144 | CA16: 1242 | CB16: 1243
D17: 34 | F17: x | H17: x | M17: x | O17: x
D18: 33
D19: 32 | J19: x | P19: x
D20: 31 | N20: x
D21: 30 | G21: x | I21: x | P21: x
D22: 29
D23: 28 | F23: x | M23: x | P23: x
D24: 27 | F24: x | I24: x | M24: x
D25: 26 | E25: =IF(COUNTIF(Matrix,E$4*100+$D25)>0,"x","") ->  | U25: =IF(INDEX(Fusszeilen,U$4,$D25)="","",IF(INDEX(Fusszeilen,U$4,$D25)="h",INT($B$1/100),IF(INDEX(Fusszeilen,U$4,$D25)="z",MOD(INT($B$1/10),10),IF(INDEX(Fusszeilen,U$4,$D25)="e",MOD($B$1,10),INDEX(Fusszeilen,U$4,$D25))))) -> 
D26: 25 | J26: x | Q26: x
D27: 24 | G27: x | Y27: x
D28: 23 | I28: x | N28: x
D29: 22 | O29: x
D30: 21 | I30: x | M30: x
D31: 20 | G31: x | M31: x | P31: x
D32: 19 | F32: x | Y32: x
D33: 18 | J33: x | P33: x
D34: 17 | N34: x
D35: 16 | E35: =IF(COUNTIF(Matrix,E$4*100+$D35)>0,"x","") ->  | G35: x | U35: =IF(INDEX(Fusszeilen,U$4,$D35)="","",IF(INDEX(Fusszeilen,U$4,$D35)="h",INT($B$1/100),IF(INDEX(Fusszeilen,U$4,$D35)="z",MOD(INT($B$1/10),10),IF(INDEX(Fusszeilen,U$4,$D35)="e",MOD($B$1,10),INDEX(Fusszeilen,U$4,$D35))))) -> 
D36: 15 | H36: x
D37: 14 | P37: x
D38: 13 | G38: x | I38: x | N38: x | O38: x
D39: 12 | F39: x | M39: x
D40: 11 | I40: x | P40: x
D41: 10 | F41: x | M41: x
D42: 9 | O42: x | P42: x
D43: 8 | H43: x
D44: 7 | I44: x | P44: x
D45: 6 | E45: =IF(COUNTIF(Matrix,E$4*100+$D45)>0,"x","") ->  | I45: x | U45: =IF(INDEX(Fusszeilen,U$4,$D45)="","",IF(INDEX(Fusszeilen,U$4,$D45)="h",INT($B$1/100),IF(INDEX(Fusszeilen,U$4,$D45)="z",MOD(INT($B$1/10),10),IF(INDEX(Fusszeilen,U$4,$D45)="e",MOD($B$1,10),INDEX(Fusszeilen,U$4,$D45))))) -> 
D46: 5 | F46: x | M46: x
D47: 4 | J47: x | Q47: x
D48: 3
D49: 2
D50: 1
